{"text_format":"3","workbook":"xlsx","n_sheets":11,"sheets":["2024年9月","免收项目","柜面结算类","国际结算类","电子银行类","银行卡类","代理业务类","同业及投资理财类","信贷及其它业务类","其它类","优惠类"],"not_rendered":{"defined_names":9},"read":"whole","date_system":"1900"}

{"sheet":"2024年9月","index":0,"n_rows":147,"n_cols":13,"rows_kept":147,"merged":[[0,0,0,12],[37,0,38,0],[37,1,38,1],[37,2,38,2],[37,3,38,3],[37,5,38,5],[37,6,38,6],[37,7,38,7],[37,8,38,8],[37,10,38,10],[37,11,38,11],[37,12,38,12],[37,13,38,13],[65,12,93,12],[141,0,141,12],[142,0,142,12],[143,0,143,12],[144,0,144,12],[145,0,145,3],[146,0,146,12]]}
["宁夏银行服务价目表"]
["编号","管理部门","收费项目","服务内容","收费标准","定价形式","优惠政策","优惠政策起止日期","适用客户","适用地区","代收代付业务委托单位名称及咨询投诉电话","收费依据","备注"]
["000001","运营管理部","个人跨行柜台转账汇款手续费","通过柜台将个人客户的资金从本行账户（不含信用卡）转移到其他银行（含同城和异地）的账户","0.2万元以下（含0.2万元），2元/笔；     0.2万元—0.5万元（含0.5万元），5元/笔；0.5万元—1万元（含1万元），10元/笔；   1万元—5万元（含5万元），15元/笔；     5万元以上，每笔按0.03%收取，最高收费50元。客户要求实时到账的加急业务，加收20%的手续费，每笔业务收费上限为50元","政府指导价","无","无","个人","所有营业机构","无","1、发改价格〔2014〕268号；       2、计价格〔2001〕791号","1、转账范围包括向其他银行的本人、其他个人或单位的账户进行资金转移；2、汇款金额不迟于2个工作日内到账（因不可控制的外部原因或存在技术条件制约导致资金不能到账或延迟到账、有特别约定等情况除外）；3、汇划财政金库、救灾、抚恤金等款项，免收跨行转账汇款手续费 "]
["000002","运营管理部","对公跨行柜台转账汇款手续费","通过柜台将对公客户的资金从本行账户转移到其他银行（含同城和异地）的账户","1万元以下（含1万元），5元/笔；         1万元-10万元（含10万元），10元/笔；   10万元-50万元（含50万元），15元/笔 ； 50万元-100万元（含100万元），20元/笔 ；100万元以上，每笔按0.002% 收取，最高收费200元。客户要求实时到账的加急业务，加收20%的手续费，每笔业务收费上限为200元","政府指导价","对于小微企业和个体工商户\n1.1万元以下（含1万元），4.5元/笔；\n2.1万元-10万元（含10万元），9元/笔；\n3.其他汇款金额条款不做优惠","2025年1月1日至2025年12月31日","对公","所有营业机构","无","1、发改价格〔2014〕268号；       2、银发〔2021〕169号 \n3、宁银办〔2024〕207号","1、转账范围包括向其他银行的本单位、其他单位或个人的账户进行资金转移；2、汇款金额不迟于2个工作日内到账（因不可控制的外部原因或存在技术条件制约导致资金不能到账或延迟到账、有特别约定等情况除外）；3、汇划财政金库、救灾、抚恤金等款项，免收跨行转账汇款手续费；4、汇划职工工资、退休金、养老金等每笔收费2元"]
["000003","运营管理部","个人现金汇款手续费","将个人客户现金汇入异地本行账户或汇入其他银行（含同城和异地）的账户","每笔按汇款金额的0.5%收取，最高收费50元。客户要求实时到账的加急业务，加收20%的手续费，每笔业务收费上限为50元","政府指导价","无","无","个人","所有营业机构","无","1、发改价格〔2014〕268号；       2、计价格〔2001〕791号","1、汇款金额不迟于2个工作日内到账（因不可控制的外部原因或存在技术条件制约导致资金不能到账或延迟到账、有特别约定等情况除外）；2、汇划财政金库、救灾、抚恤金等款项，免收跨行汇款手续费"]
["000004","网络金融部","商户结算手续费","为特约商户提供B2B、B2C等电子支付收单服务及基于微信、支付宝等第三方线下扫码支付、线上扫码或公众号支付的互联网收单服务","协议定价","市场调节价","无","无","对公/个人","所有营业机构","无","宁银办〔2017〕142号"]
["000005","运营管理部","支票手续费","为个人或对公客户办理支票业务","1元/笔 ","政府指导价","无","无","对公/个人","所有营业机构","无","发改价格〔2014〕268号","客户未用退回时按退回份数及收费标准退回手续费"]
["000006","运营管理部","支票挂失费","为个人或对公客户办理支票挂失","按票面金额0.1%收取（不足5元收取5元）","政府定价","免收","长期","对公/个人","所有营业机构","无","1、银发〔2021〕169号 ；\n2、宁银办〔2021〕176号"]
["000007","运营管理部","支票工本费","出售给个人或对公客户的支票凭证","0.40元/份 ","政府定价","免收","长期","对公/个人","所有营业机构","无","1、银发〔2021〕169号 ；\n2、宁银办〔2021〕176号"]
["000008","运营管理部","本票手续费","为个人或对公客户办理本票业务","1元/笔 ","政府指导价","免收","长期","对公/个人","所有营业机构","无","1、发改价格〔2017〕1250号；2、宁银办〔2017〕96号 ","客户未用退回时按退回份数及收费标准退回手续费"]
["000009","运营管理部","本票挂失费","为个人或对公客户办理本票挂失","按票面金额0.1%收取（不足5元收取5元）","政府定价","免收","长期","对公/个人","所有营业机构","无","1、发改价格〔2017〕1250号；2、宁银办〔2017〕96号 "]
["000010","运营管理部","本票工本费","出售给个人或对公客户的本票凭证","0.48元/份 ","政府定价","免收","长期","对公/个人","所有营业机构","无","1、发改价格〔2017〕1250号；2、宁银办〔2017〕96号 "]
["000011","运营管理部","银行汇票手续费","为个人或对公客户办理银行汇票业务","1元/笔  ","政府指导价","免收","长期","对公/个人","所有营业机构","无","1、发改价格〔2017〕1250号；2、宁银办〔2017〕96号 ","客户未用退回时按退回份数及收费标准退回手续费"]
["000012","运营管理部","银行汇票挂失费","为个人或对公客户办理银行汇票挂失","按票面金额0.1%收取（不足5元收取5元）","政府定价","免收","长期","对公/个人","所有营业机构","无","1、发改价格〔2017〕1250号；2、宁银办〔2017〕96号 "]
["000013","运营管理部","银行汇票工本费","出售给个人或对公客户的银行汇票凭证","0.48元/份 ","政府定价","免收","长期","对公/个人","所有营业机构","无","1、发改价格〔2017〕1250号；2、宁银办〔2017〕96号 "]
["000014","运营管理部","银行承兑汇票手续费","为对公客户办理银行承兑汇票的签发、承兑业务","按票面金额的0.5‰","市场调节价","无","无","对公","所有营业机构","无"," 宁银办〔2016〕10号 "]
["000015","运营管理部","商业汇票工本费","通过柜台为对公客户办理商业汇票签发业务的凭证费","0.40元/份","市场调节价","免收","长期","对公","所有营业机构","无","宁银办〔2023〕260号"]
["000016","运营管理部","银行汇票汇划费","为对公或个人客户办理银行汇票资金划转","2.5元/笔","市场调节价","无","无","对公/个人","所有营业机构","无"," 宁银办〔2016〕10号 "]
["000017","运营管理部","结算专用IC卡工本费","开立单位结算账户，提供当地人民银行规定的结算专用IC卡凭证费","60元/张","市场调节价","无","无","对公","天津分行辖属营业机构","无","按照天津人行规定价格收取"]
["000018","运营管理部","委托收款及托收承付手续费","为客户办理委托收款及托收承付业务","1元/笔","市场调节价","无","无","对公/个人","所有营业机构","无"," 宁银办〔2016〕10号 "]
["000019","运营管理部","委托收款及托收承付邮寄费  ","为客户办理委托收款及托收承付业务邮寄费","普通信件2.50元/笔；特快专递（EMS）21.50元/笔","市场调节价","无","无","对公/个人","所有营业机构","无"," 宁银办〔2016〕10号 "]
["000020","运营管理部","委托收款及托收承付工本费  ","通过柜台为客户办理委托收款及托收承付业务凭证费","0.20元/份","市场调节价","无","无","对公/个人","所有营业机构","无"," 计价费〔1996〕184号；       2、银发〔1997〕393 号"]
["000021","运营管理部","储蓄异地托收手续费","为客户办理储蓄异地托收业务","按托收金额的1%收取，最低1元/笔，最高50元/笔","市场调节价","无","无","个人","所有营业机构","无"," 宁银办〔2016〕10号 "]
["000022","运营管理部","银行承兑汇票查询手续费","为客户办理银行承兑汇票查询业务","30元/笔","市场调节价","无","无","对公","所有营业机构","无"," 宁银办〔2016〕10号 "]
["000023","运营管理部","汇兑业务汇款人主动查询手续费 ","应汇款人主动要求，办理汇款查询业务 ","10元/笔","市场调节价","无","无","对公/个人","所有营业机构","无"," 宁银办〔2016〕10号 "]
["000024","运营管理部","银行本汇票申请书、汇兑凭证工本费 ","通过柜台向对公客户出售银行本汇票申请书、汇兑凭证的工本费 ","0.40元/份 ","市场调节价","无","无","对公","所有营业机构","无","宁办〔2014〕272号"]
["000025","运营管理部","存单、折、借记卡挂失手续费 ","为个人客户办理存单、折、借记卡挂失业务","10元/笔","市场调节价","卡bin621417社保卡挂失手续费免收","2023年1月1日至2025年12月31日","个人","所有营业机构","无","宁银办〔2022〕208号"]
["000026","运营管理部","开立存款证明手续费","为客户开立存款证明","个人客户20元/份；对公客户200元/份","市场调节价","无","无","对公/个人","所有营业机构","无"," 宁银办〔2016〕10号 "]
["000027","运营管理部","开立银行询证函手续费","开立银行账户询证函","100元/份","市场调节价","对小微企业免收","2025年1月1日至2025年12月31日","对公","所有营业机构","无","\n通知〔2024〕648号\n"]
["000028","运营管理部","预留印鉴变更手续费","为对公客户或个人客户办理预留印鉴变更业务","10元/笔","市场调节价","无","无","对公/个人","所有营业机构","无"," 宁银办〔2016〕10号 "]
["000029","运营管理部","预留印鉴挂失手续费 ","为对公客户或个人客户办理预留印鉴挂失业务","50元/笔","市场调节价","无","无","对公/个人","所有营业机构","无"," 宁银办〔2016〕10号 ","收取挂失手续费后不再收取变更手续费"]
["000030","网络金融部","个人客户普通网银跨行转账/结算汇划费","通过网银将个人客户的资金从本行账户转移到其他银行（含同城和异地）的账户","0.2万元以下（含） 2元/笔\n0.2-0.5万元（含）：5元/笔\n0.5万元-1万元（含）：10元/笔\n1万元-5万元（含）：15元/笔\n5万元以上：转账金额的0.03%，最高50元","市场调节价","免收","2025年1月1日至2025年12月31日","个人","所有营业机构","无","\n通知〔2024〕648号\n"]
["000031","网络金融部","对公客户普通网银跨行转账/结算汇划费","通过网银将对公客户的资金从本行账户转移到其他银行（含同城和异地）的账户","\n1万元以下（含）：5元/笔\n1万元-10万元（含）：10元/笔\n10万元-50万元（含）：15元/笔\n50万元-100万元（含）：20元/笔\n100万元以上：转账金额的0.002%，最高200元\n","市场调节价","按6折收取","2025年1月1日至2025年12月31日","对公","所有营业机构","无","\n通知〔2024〕648号\n"]
["000032","信用卡中心","信用卡违约金","因持卡人未在到期还款日前偿还最低还款额而收取的费用","最低还款额未还部分的5%，按月计收,最低1元标准。\n","市场调节价","无","无","个人","所有营业机构","无","宁银办〔2018〕170号"]
["000033","授信审批部","贷款合同及承兑协议工本费","签订贷款合同及承兑协议","10万元（含）以下,收10元；10万元以上，收20元","市场调节价","免收","2025年1月1日至2025年12月31日","对公/个人","所有营业机构","无","\n通知〔2024〕648号\n","按份收取，贷款发放或承兑汇票承兑后收取"]
["000034","授信审批部","保函手续费","保函手续费","期限6个月（含）内的，费率0.8‰，最低300元，100%保证金可适当降低标准；期限6个月至1年（含）内的，费率1.2‰，最低300元，100%保证金可适当降低标准；期限1年以上的，费率1.6‰，最低500元，100%保证金可适当降低标准","市场调节价","无","无","对公","所有营业机构","无","宁银（运）发〔2012〕154号"]
["000035","授信审批部","贷款承诺业务手续费","开立信贷证明/贷款承诺手续费","AAA、AA级客户，执行费率0.1‰-1‰；A级及以下客户，执行费率1‰-2‰，单笔手续费不足500元的，按500元收取","市场调节价","对小微企业免收","长期","对公/个人","所有营业机构","无"," 宁银办〔2020〕343号","按金额和费率一次性收取"]
["000036","授信审批部","委托贷款手续费","接受客户委托，代为发放、管理并协助收回委托贷款","按月费率0.1‰-2‰执行；单笔手续费不足300元的，按300元一次性收取。","市场调节价","无","无","对公/个人","宁夏地区及天津地区","无","宁银办〔2016〕240号","委托人按委托贷款金额和期限支付手续费，本行一次性或按季（月）分次收取"]
[{"$nulls":4},"按月费率0.04‰-2‰，单笔手续费不足300元的，按300元一次性收取。",{"$nulls":4},"西安地区"]
["000037","信用卡中心","信用卡在境内跨行ATM机上取款手续费","使用信用卡在境内跨行ATM机上取款缴纳的费用","取款金额的0.5%+2元","市场调节价","无","无","个人","所有营业机构","无","宁银办〔2018〕170号"]
["000038","信用卡中心","信用卡境外取现手续费","使用信用卡在境外ATM 机上取款缴纳的费用","12元/笔","市场调节价","无","无","个人","所有营业机构","无","宁银办〔2018〕170号"]
["000039","信用卡中心","信用卡跨境查询手续费","使用信用卡在境外进行查询交易缴纳的手续费","2元/笔","市场调节价","无","无","个人","所有营业机构","无","宁银办〔2018〕170号"]
["000040","信用卡中心","信用卡ATM取款单据、POS消费单据调单费","调取信用卡在ATM机或POS机交易单据缴纳的费用","10元/笔","市场调节价","无","无","个人","所有营业机构","无","宁银办〔2018〕170号"]
["000041","信用卡中心","信用卡年费","按信用卡的信用等级及产品类别享有相应的信用卡功能服务","1.金卡：主卡80元，副卡40元；\n2.普卡：主卡40元，副卡20元；\n3.如意白金卡：主卡年费480元，副卡240元；","市场调节价","1.金卡、普卡：首年免年费，当年消费+取现满3次或900元免次年年费。\n2.如意白金卡：首年免年费，当年消费+取现满12次免次年年费或50000积分兑年费。\n3.已收取信用卡年费的，客户提出申请并在年费收取日起3个月内达到上述年费减免条件的，退还已收的年费。","2024年1月1日至2025年12月31日","个人","所有营业机构","无","宁银办〔2023〕260号","如意白金卡包括尊尚白金卡、车友白金卡、精英白金卡、移动联名白金卡等。"]
["000042","公司金融部","单位结算卡IC卡年费","开卡年费","600元/年","市场调节价","免收","2025年1月1日至2025年12月31日","对公","所有营业机构","无","宁银办〔2024〕207号"]
["000043","公司金融部","单位结算卡IC卡工本费","开卡工本费","20元/张","市场调节价","免收","2025年1月1日至2025年12月31日","对公","所有营业机构","无","宁银办〔2024〕207号"]
["000044","公司金融部","国内信用证转让费","根据开证行指示办理信用证转让","转让金额的1‰，最低300元，最高1000元。","市场调节价","无","无","对公","所有营业机构","无","宁银办〔2017〕29号"]
["000045","信用卡中心","信用卡正式挂失手续费","挂失信用卡缴纳的费用","30元/次","市场调节价","无","无","个人","所有营业机构","无","宁银办〔2019〕22号"]
["000046","金融市场部","债券借贷融出手续费","债券借贷融出业务","协议定价","市场调节价","无","无","同业客户","总行","无","宁银办〔2022〕54号"]
["000047","信用卡中心","信用卡工本费","为客户办理信用卡新发、换卡业务；并将围绕特殊工艺、材质、设计等整合自身服务与外部资源，开发具有特殊工艺的卡片产品，满足客户多样化需求","\n1.非特殊设计芯片卡：10元/卡\n2.其他特殊工艺信用卡：根据协议约定收取","市场调节价","\n1.新发卡（含到期续卡）工本费：免收\n2.换卡工本费：\n（1）非特殊设计芯片卡：暂免收取\n","2025年1月1日至2025年12月31日","个人","所有营业机构","无","宁银办〔2024〕207号"]
["000048","网络金融部","商户收单手续费","向商户提供收单结算服务","协议定价","政府指导价、市场调节价","对标准类商户借记卡刷卡收单手续费（含小微企业和个体工商户）实行9折优惠，封顶值维持不变；对优惠类商户银联卡刷卡收单手续费继续实行7.8折优惠，具体依据监管部门、中国银联等机构相关规定确定","2025年1月1日至2025年12月31日","对公/个人","所有营业机构","无","1、发改价格〔2016〕557号；2、银发〔2021〕169号 ；\n3、宁银办〔2024〕207号\n"]
["000049","运营管理部","小额支付跨行通手续费（西咸支付一体化）","为对公或个人客户办理小额支付跨行通业务 ","2元/笔","市场调节价","无","无","对公/个人","仅限西安分行各营业机构","无","宁银办〔2018〕170号"]
["000050","运营管理部","单位银行结算账户开户手续费 （不含保证金账户）","办理单位银行结算账户开户业务","100元/户","市场调节价","对于小微企业和个体工商户在同一银行开立的首个或者指定一个单位结算账户50元/户","2025年1月1日至2025年12月31日","对公","所有营业机构","无","1、银发〔2021〕169号 ；\n2、宁银办〔2024〕207号\n"]
["000051","运营管理部","补制回单 （含电子缴税凭证）手续费","为对公或个人客户补制各类业务回单 ","1元/页","市场调节价","无","无","对公/个人","所有营业机构","无","宁银办〔2016〕150号"]
["000052","运营管理部","补制对账单手续费","为对公客户补制已向客户发放过的账户对账单","1元/页","市场调节价","无","无","对公","所有营业机构","无"," 宁银办〔2020〕23号 "]
["000053","运营管理部","单位存折、单位结算卡、单位定期存款开户证实书挂失手续费","为对公客户办理单位存折、单位结算卡、定期存款开户证实书挂失业务","10元/份","市场调节价","无","无","对公","所有营业机构","无","宁银办〔2019〕106号"]
["000054","公司金融部","国内信用证确认到期付款费","承诺付款","不超过承诺付款敞口金额的4.5‰，按季收取。全额保证金开证可降低收费标准或免收。","市场调节价","无","无","对公","所有营业机构","无","宁银办〔2022〕208号","具体按协议价格收取"]
["000055","公司金融部","国内信用证不符点处理费","处理不符点单据","100元/笔","市场调节价","无","无","对公","所有营业机构","无","宁银办〔2017〕29号"]
["000056","运营管理部","代保管物品管理费","为对公或个人客户提供有价单证及贵重物品代保管服务","按月收取， 5元/件/月 ","市场调节价","无","无","对公/个人","所有营业机构","无","宁银办〔2014〕272号"]
["000057","运营管理部","资金监管业务管理费","为对公客户或个人客户提供资金监管服务","原则上50元/户/月，按月收取，实际执行按双方签订的合同收取 ","市场调节价","无","无","对公/个人","所有营业机构","无"," 宁银办〔2016〕10号 "]
["000058","公司金融部","日元汇款全额到账","为客户提供日元汇款全额到账服务","汇款金额的万分之五，最低2500日元。","市场调节价","无","无","对公/个人","所有营业机构","无","宁银办〔2016〕240号"]
["000059","个人金融部","如意白金IC借记卡开卡工本费","开立如意白金IC借记卡缴纳的工本费","20元/卡","市场调节价","免收","2023年1月1日至2025年12月31日","个人","所有营业机构","无","宁银办〔2022〕208号"]
["000060","个人金融部","如意白金IC借记卡账户管理费","对如意白金IC借记卡账户收取的管理费","200元/季","市场调节价","免收","2023年1月1日至2025年12月31日","个人","所有营业机构","无","宁银办〔2022〕208号"]
["000061","运营管理部","具有圈存功能的支付密码器工本费","为对公客户提供圈存、支付密码服务","350元/台，实际执行以银行与出售方协商签订的合同约定为准","市场调节价","无","无","对公","仅限天津分行各营业机构","无","宁银办〔2016〕104号"]
["000062","运营管理部","普通支付密码器工本费","为对公客户提供支付密码服务","320元/台，实际执行以银行与出售方协商签订的合同约定为准","市场调节价","无","无","对公","除天津分行以外的其他营业机构","无","宁银办〔2014〕272号"]
["000063","公司金融部","进口信用证开证","为客户办理信用证开证","全额保证金的按开证金额的1.5‰收取，最低300元；非全额保证金的，有效期三个月以上的，每三个月增收开证金额的0.5‰；一年期（不含）以上的信用证可按协议价收取","市场调节价","无","无","对公","所有营业机构","无","宁银办〔2014〕272号","1、对于重点外汇客户可按照我行费率优惠标准执行。2、跨境人民币结算项下国际结算业务服务价格参照上述标准执行，跨境人民币汇款手续费参照汇出境外汇款手续费执行。3、通过网上银行办理的国际业务，参照本表相关收费标准。4、快邮/快递费以当地快递公司的收费标准为依据，客户可与快递公司自行结算。凡业务发生的境外银行收费，据实收取。"]
["000064","公司金融部","进口信用证修改","修改信用证金额、效期及其它","100元/笔。修改增额的，按增额的1.5‰收取；延展效期超过三个月的,每三个月增收修改日原信用证余额的0.5‰，不另收取修改手续费","市场调节价","无","无","对公","所有营业机构","无","宁银办〔2014〕272号"]
["000065","公司金融部","进口信用证承兑","承诺付款","承兑敞口的0.5‰-4.5‰，按季收取。全额保证金开证可降低收费标准或免收。","市场调节价","无","无","对公","所有营业机构","无","宁银办〔2017〕199号"]
["000066","公司金融部","进口信用证不符点费","处理不符点单据","60美元/笔 ","市场调节价","无","无","对公","所有营业机构","无","宁银办〔2014〕272号"]
["000067","公司金融部","进口信用证退单/撤证","为客户办理信用证退单、撤证","200元/笔","市场调节价","无","无","对公","所有营业机构","无","宁银办〔2014〕272号"]
["000068","公司金融部","进口信用证付款费","信用证付款","40美元/笔","市场调节价","无","无","对公","所有营业机构","无","宁银办〔2014〕272号"]
["000069","公司金融部","出口信用证通知/转递","收到开证行开立的信用证，为客户提供通知、转递服务","200元/笔","市场调节价","在我行交单可免收","长期","对公","所有营业机构","无"," 宁银办〔2016〕10号 "]
["000070","公司金融部","出口信用证修改通知","修改信用证通知","100元/笔","市场调节价","在我行交单可免收","长期","对公","所有营业机构","无"," 宁银办〔2016〕10号 "]
["000071","公司金融部","出口信用证保兑","对信用证加保","保兑金额的1.25‰，最低300元，按季收取","市场调节价","无","无","对公","所有营业机构","无","宁银办〔2014〕272号"]
["000072","公司金融部","出口信用证转让","根据开证行指示办理信用证转让","转让金额的1.5‰，最低300元,最高1000元","市场调节价","无","无","对公","所有营业机构","无","宁银办〔2014〕272号"]
["000073","公司金融部","出口信用证议付/验单","信用证项下单据审核、议付","议付金额的1.25‰，最低200元","市场调节价","无","无","对公","所有营业机构","无","宁银办〔2014〕272号"]
["000074","公司金融部","出口信用证撤证/注销","信用证撤证、注销","100元/笔 ","市场调节价","无","无","对公","所有营业机构","无","宁银办〔2014〕272号"]
["000075","公司金融部","出口信用证不符点交涉","与开证行交涉","200元/笔","市场调节价","无","无","对公","所有营业机构","无","宁银办〔2014〕272号"]
["000076","公司金融部","出口托收光票托收","光票托收","托收金额的1‰，最低50元最高1000元","市场调节价","无","无","对公","所有营业机构","无","宁银办〔2014〕272号"]
["000077","公司金融部","出口托收跟单托收","跟单托收","托收金额的1‰，最低100元最高2000元","市场调节价","无","无","对公","所有营业机构","无","宁银办〔2014〕272号"]
["000078","公司金融部","出口托收授权无偿放单","不付款放单","100元/笔 ","市场调节价","无","无","对公","所有营业机构","无","宁银办〔2014〕272号"]
["000079","公司金融部","出口托收退单/退票","退回单据","100元/笔","市场调节价","无","无","对公","所有营业机构","无","宁银办〔2014〕272号"]
["000080","公司金融部","出口托收修改托收指示","应出口商指示修改托收单据","100元/笔","市场调节价","无","无","对公","所有营业机构","无","宁银办〔2014〕272号"]
["000081","公司金融部","进口代收光票代收","光票代收","代收金额的1‰，最低50元最高1000元","市场调节价","无","无","对公","所有营业机构","无","宁银办〔2014〕272号"]
["000082","公司金融部","进口代收跟单代收","跟单代收","代收金额的1‰，最低100元最高2000元","市场调节价","无","无","对公","所有营业机构","无","宁银办〔2014〕272号"]
["000083","公司金融部","进口代收拒付退单/退票","根据委托行指示退单、退票","100元/笔","市场调节价","无","无","对公","所有营业机构","无","宁银办〔2014〕272号"]
["000084","公司金融部","进口代收付款费","为客户提供款项偿付","40美元/笔","市场调节价","无","无","对公","所有营业机构","无","宁银办〔2014〕272号"]
["000085","公司金融部","外币保函开立","为客户提供开立外币保函的服务","非融资性保函：0.5‰-2‰，按季收取，最低300元；融资性保函：5‰-7‰，按季收取，最低1000元。根据业务风险水平和担保、客户授信情况等确定具体费率标准。","市场调节价","无","无","对公","所有营业机构","无"," 宁银办〔2016〕10号 "]
["000086","公司金融部","外币保函转开","为客户提供外币保函转开的服务","保函金额的2‰，最低300元最高1000元，按季收取","市场调节价","无","无","对公","所有营业机构","无","宁银办〔2014〕272号"]
["000087","公司金融部","外币保函的通知/转递","银行为客户提供的外币保函的通知/转递的服务","200元/笔","市场调节价","无","无","对公","所有营业机构","无","宁银办〔2014〕272号"]
["000088","公司金融部","外币保函的修改/注销","应申请人要求修改/注销外币保函","100元/笔，修改保函增额时，按开立保函费率计算","市场调节价","无","无","对公","所有营业机构","无","宁银办〔2014〕272号"]
["000089","公司金融部","国际业务提货担保","应客户申请银行提供的担保先行提货服务","提货担保金额的0.5‰，最低300元","市场调节价","无","无","对公","所有营业机构","无","宁银办〔2014〕272号"]
["000090","公司金融部","外汇电汇汇出","外汇电汇汇出","汇款金额的1‰，最低50元，最高1000元","市场调节价","免收","2025年1月1日至2025年12月31日","对公/个人","所有营业机构","无","宁银办〔2024〕207号"]
["000091","公司金融部","外汇汇款修改/退汇/止付","外汇汇款修改/退汇/止付","100元/笔","市场调节价","无","无","对公/个人","所有营业机构","无"," 宁银办〔2017〕199号"]
["000092","资管业务部","受托理财业务服务费","为客户提供理财产品销售、管理等服务而收取的相关费用，包括但不限于认购、申购、赎回手续费，投资管理费，销售服务费等","协议定价,具体收费标准参见理财产品销售文件","市场调节价","无","无","对公/个人/同业客户","所有营业机构","无","宁银办〔2021〕77号"]
["000093","运营管理部","银行承兑汇票挂失费","为对公客户办理银行承兑汇票的挂失止付业务","按票面金额0.1%收取（不足5元收取5元）","市场调节价","无","无"," 对公 ","所有营业机构","无","宁银办〔2016〕240号"]
["000094","运营管理部","城商行网络支付密码汇款手续费","为个人客户办理城市商业银行支付清算系统的网络支付密码汇款业务","5元 /笔","市场调节价","无","无","个人","所有营业机构","无"," 宁银办〔2016〕10号 "]
["000095","个人金融部","保险代理业务手续费","代理销售保险业务","业务合作协议约定标准","市场调节价","无","无","对公 ","所有营业机构","以我行合作单位及电话为准,详情请咨询09515058832"," 宁银办〔2016〕10号 "]
["000096","网络金融部","手机银行跨行转账/结算汇划费","通过手机银行将个人客户的资金从本行账户转移到其他银行（含同城和异地）的账户","0.2万元以下（含）： 2元/笔\n0.2-0.5万元（含）：5元/笔\n0.5万元-1万元（含）：10元/笔\n1万元-5万元（含）：15元/笔\n5万元以上：转账金额的0.03%，最高50元","市场调节价","免收","2025年1月1日至2025年12月31日","个人","所有营业机构","无","\n通知〔2024〕648号\n"]
["000097","运营管理部","自助服务终端跨行转账/结算汇划费","通过自助服务终端设备将个人客户的资金从本行账户转移到其他银行（含同城和异地）的账户","0.2万元以下（含）： 2元/笔\n0.2-0.5万元（含）：5元/笔\n0.5万元-1万元（含）：10元/笔\n1万元-5万元（含）：15元/笔\n5万元以上：转账金额的0.03%，最高50元","市场调节价","按6折收取","2025年1月1日至2025年12月31日","个人","所有营业机构","无","\n通知〔2024〕648号\n"]
["000098","公司金融部","国际业务查询/催收","国际业务查询/催收","100元/笔，向国外银行追索迟付利息，按追索金额×追索日LIBOR利率×迟付天数/360计算","市场调节价","无","无","对公/个人","所有营业机构","无","宁银办〔2014〕272号"]
["000099","公司金融部","外币资信证明","外币资信证明","500元/笔","市场调节价","无","无","对公","所有营业机构","无","宁银办〔2014〕272号"]
["000100","公司金融部","国际业务处理费","为客户提供预开信用证、单证预审、寄单再修改、提单背书、无偿放单、补换单、出口信用证效期内撤证、出口撤证恢复、信用证挂失等服务","100元/笔","市场调节价","无","无","对公/个人","所有营业机构","无","宁银办〔2014〕272号"]
["000101","公司金融部","国际业务电报费","SWIFT发报","汇款业务：100元；全电开证：300元；其它业务处理：100-300元。","市场调节价","免收汇款业务手续费，全电开证及其它业务处理按正常收费标准执行","2025年1月1日至2025年12月31日","对公/个人","所有营业机构","无","宁银办〔2024〕207号"]
["000102","公司金融部","国际业务快邮费","邮递公司提供的邮递服务","以业务办理当天快递公司实际收费标准为准","市场调节价","无","无","对公/个人","所有营业机构",null,"宁银办〔2024〕207号"]
["000103","公司金融部","国内信用证开证手续费","开立国内信用证","开证金额的0.5‰-1.5‰，最低100元","市场调节价","无","无","对公","所有营业机构","无"," 宁银办〔2020〕343号","具体按协议价格收取"]
["000104","公司金融部","国内信用证修改手续费","修改国内信用证金额、期限及其它","100元/笔，修改增额的，按增额的0.5‰-1.5‰收取，不另收取修改手续费","市场调节价","无","无","对公","所有营业机构","无"," 宁银办〔2020〕343号","具体按协议价格收取"]
["000105","公司金融部","国内信用证通知/修改通知手续费","国内信用证通知/修改通知手续费","50元/笔","市场调节价","无","无","对公","所有营业机构","无"," 宁银办〔2016〕10号 "]
["000106","公司金融部","国内信用证议付手续费","议付国内信用证","不超过议付金额的1‰。","市场调节价","无","无","对公","所有营业机构","无","宁银办〔2017〕199号","具体按协议价格收取"]
["000107","公司金融部","国内信用证收单单据处理费","国内信用证项下单据的审核处理","200元/笔","市场调节价","无","无","对公","所有营业机构","无","宁银办〔2014〕272号"]
["000108","公司金融部","国内信用证修改单据费","国内信用证修改单据","50元/笔","市场调节价","无","无","对公","所有营业机构","无","宁银办〔2014〕272号"]
["000109","公司金融部","国内信用证邮寄费","寄送国内信用证项下单据","按实收取","市场调节价","无","无","对公","所有营业机构","无","宁银办〔2014〕272号"]
["000110","公司金融部","住房公积金委托贷款手续费","发放住房公积金委托贷款","按不高于贷款利息收入的5%收取,或按协议价格收取","市场调节价","无","无","对公","所有营业机构","无","宁银办〔2014〕272号"]
["000111","公司金融部","代理电信用户缴费手续费","代理电信公司缴费业务","协议定价","市场调节价","无","无","对公","宁夏地区营业机构","中国电信宁夏分公司 电话：6035901","宁银办〔2014〕272号"]
["000112","公司金融部","代理联通用户通信费、预缴费、滞纳金等手续费","代理固定通信、移动通信业务以及在协议有效期内开办的其他业务的通信费、预缴费、滞纳金等","协议定价","市场调节价","无","无","对公","宁夏地区营业机构","中国联通宁夏分公司 电话：7651027","宁银办〔2014〕272号"]
["000113","公司金融部","代理宁夏有线电视收视手续费","代理宁夏有线电视收视费","协议定价","市场调节价","无","无","对公","宁夏地区营业机构","宁夏广播电视网络有限公司 电话：6014307","宁银办〔2014〕272号"]
["000114","公司金融部","代理银川市住房公积金归集手续费","公积金归集业务","协议定价","市场调节价","无","无","对公","银川地区营业机构","银川市住房公积金 电话：6026096","宁银办〔2014〕272号"]
["000115","公司金融部","代理宁夏国税纳税手续费","代理征收12366电话申报的小规模纳税人应缴的增值税和企业所得税","协议定价","市场调节价","无","无","对公","宁夏地区营业机构","宁夏回族自治区国家税务局：银川地区0951-12366、石嘴山地区0952-12366、吴忠地区0953-12366、中卫地区0955-12366"," 宁银办〔2016〕10号 "]
["000116","信用卡中心","信用卡跨行还款手续费","持卡人在本行渠道使用他行借记卡向我行信用卡还款时收取的费用","2元/笔","市场调节价","免收","2024年1月1日至2025年12月31日","个人","所有营业机构","无","宁银办〔2023〕260号","本行渠道还款免费，其他渠道还款按转出行或其他机构规定收费。"]
["000117","公司金融部","代理移动用户缴费手续费","代理移动通信业务以及在协议有效期内开办的其他业务的通信费、预缴费、滞纳金等","协议定价","市场调节价","无","无","对公","宁夏地区营业机构","中国移动宁夏分公司 电话：10086 ","宁银办〔2014〕272号"]
["000118","个人金融部","代理贵金属销售手续费","代理销售实物金","业务合作协议约定标准","市场调节价","无","无","对公","所有营业机构","以我行合作单位及电话为准,详情请咨询09515058832"," 宁银办〔2016〕10号 "]
["000119","个人金融部","代理贵金属回购手续费","代理回购实物金","业务合作协议约定标准","市场调节价","无","无","对公","所有营业机构","以我行合作单位及电话为准,详情请咨询09515058832"," 宁银办〔2016〕10号 "]
["000120","计划财务部","财务顾问费","根据客户需求，提供金融信息、分析和建议，财务分析、投融资咨询服务、设计专项金融服务方案等。","协议定价","市场调节价","对小微企业免收","长期","对公/个人","所有营业机构","无"," 宁银办〔2020〕343号"]
["000121","个人金融部","借记卡跨行ATM取款手续费\n","使用借记卡在境内、境外ATM机上提取现金缴纳的费用","境内取款：每笔取款金额3.5元/笔\n境外取款：12元/笔","政府指导价、市场调节价","1.宁夏地区发卡境内外跨行ATM取款每卡每月前10笔免收手续费；\n2.西安地区发卡境内跨行ATM取款每卡每月前10笔免收手续费，境外跨行ATM取款不免手续费；\n3.天津地区发卡境内、境外跨行ATM取款每卡每月前10笔分别免收手续费；\n4.社会保障卡、个人基本养老金借记卡、乡村振兴卡、八一拥军卡境内外跨行ATM取款免收手续费。","2024年10月1日至2025年9月30日","个人/对公","所有营业机构","无","1、银发〔2021〕169号 ；\n2、通知〔2024〕648号\n"]
["000122","个人金融部","借记卡境外（含港、澳地区）跨行ATM机查询手续费","使用借记卡在境外进行查询交易缴纳的手续费","2元/笔","市场调节价","免收","2023年1月1日至2025年12月31日","个人/对公","所有营业机构","无","宁银办〔2022〕208号"]
["000123","金融市场部","债券承分销手续费","债券承分销交易中产生的各类手续费","协议定价","市场调节价","无","无","同业客户","总行","无","宁银办〔2014〕272号"]
["000124","公司金融部","福费廷业务手续费","提供债权买断、无追索权融资及风险规避等服务","协议定价，最低300元/笔","市场调节价","无","无","对公","所有营业机构","无","宁银办〔2019〕106号"]
["000125","公司金融部","欧元汇款全额到账","为客户提供欧元汇款全额到账服务","40欧元/笔","市场调节价","无","无","对公/个人","所有营业机构","无","宁银办〔2020〕23号"]
["000126","公司金融部","银团贷款手续费","为客户提供财务顾问、贷款筹集、法律咨询等融资服务","协议定价","市场调节价","无","无","对公/同业客户 ","所有营业机构","无","宁银办〔2021〕254号"]
["000127","公司金融部","国内保理费","提供买方/卖方资信状况调查服务、提供应收款融资服务、专户管理、应收账款催收、风险控制、坏账担保等服务","国内保理手续费包含：\n（1）应收账款管理费：按转让给本行应收账款金额的0-2%收取（或协议定价）；\n（2）发票处理费：0-100元/张（或协议定价）；\n根据全年保理应收账款金额大小、发票金额及数量、应收账款到期日长短等因素，在规定范围内确定具体收费标准。","市场调节价","无","无","对公","所有营业机构","无","宁银办〔2021〕254号"]
["000128","网络金融部","银企直联客户软件服务费","对公客户申请银企直联业务对接软件使用费用","协议定价","市场调节价","无","无","对公","所有营业机构","无","宁银办〔2019〕22号"]
["000129","个人金融部","银联II、III账户借记卡转账手续费","为客户提供他行II、III账户银行卡转入本行I类账户借记卡服务","按交每笔易金额的0.105%(交易金额小于等于50000元,我行目前限额单笔50000元)，最低0.05元/笔收取","市场调节价","减免","\n2024年7月26日至2025年12月31日","个人","所有营业机构","无",null,"2024年7月26日开始执行"]
["000130","运营管理部","ATM跨行转账手续费","本行ATM提供跨行转账功能；本行卡支持ATM跨行转账功能","跨行ATM转账交易手续费标准：\n2000元以下（含）:1.5元/笔\n2000元—1万元（含）：3元/笔\n1万元以上：5元/笔","市场调节价","无","无","个人","所有营业机构","无","宁银办〔2023〕65号 "]
["000131","个人金融部","基金销售业务手续费","代理销售证券投资基金业务","业务合作协议约定标准","市场调节价","无","无","对公 ","所有营业机构","无","宁银办〔2016〕240号"]
["000132","网络金融部","网银证书工本费","USB-KEY证书工本费","35元/个","市场调节价","首次申请、到期更换的网银证书免工本费","2024年10月1日至2025年9月30日","对公/个人","所有营业机构","无","\n通知〔2024〕648号\n","损坏、丢失的按收费标准收取。小微企业和个体工商户按6折收取。"]
["000133","网络金融部","网银客户证书年服务费","个人、对公客户CFCA证书管理费用","个人客户：10元/个/年\n对公客户：200元/个/年","市场调节价","免收","2024年10月1日至2025年9月30日","对公/个人","所有营业机构","无","\n通知〔2024〕648号\n"]
["000134","个人金融部","借记IC卡年费","借记卡片年度管理费","10元/卡","市场调节价","免收","2023年1月1日至2025年12月31日","个人","所有营业机构","无","宁银办〔2022〕208号"]
["000135","个人金融部","借记IC卡工本费","开立借记IC卡缴纳的工本费","15元/卡","市场调节价","免收","2023年1月1日至2025年12月31日","个人","所有营业机构","无","宁银办〔2022〕208号"]
[]
[]
[]
["注：1、本行同城范围分别指宁夏地区、西安地区和天津地区。"]
["2、本行免收社会保险经办机构和本行签约开立的个人基本养老金（含退休金）账户的本行异地（含本行柜台和ATM）取现手续费。"]
["3、本行客户账户中（不含信用卡）没有享受免收账户管理费（含小额账户管理费）和年费的，本行根据客户申请提供一个免收账户管理费（含小额账户管理费）和年费的账户（不含信用卡、贵宾账户）。"]
[]
[]
["投诉电话：96558（宁夏区内）、4008096558（宁夏区外）"]

{"sheet":"免收项目","index":1,"n_rows":25,"n_cols":13,"rows_kept":25,"merged":[[0,0,0,12]]}
["宁夏银行服务价目表"]
["编号","管理部门","收费项目","服务内容","收费标准","定价形式","优惠政策","优惠政策起止日期","适用客户","适用地区","代收代付业务委托单位名称及咨询投诉电话","收费依据","备注"]
["000006","运营管理部","支票挂失费","为个人或对公客户办理支票挂失","按票面金额0.1%收取（不足5元收取5元）","政府定价","免收","长期","对公/个人","所有营业机构","无","1、银发〔2021〕169号 ；\n2、宁银办〔2021〕176号"]
["000007","运营管理部","支票工本费","出售给个人或对公客户的支票凭证","0.40元/份 ","政府定价","免收","长期","对公/个人","所有营业机构","无","1、银发〔2021〕169号 ；\n2、宁银办〔2021〕176号"]
["000008","运营管理部","本票手续费","为个人或对公客户办理本票业务","1元/笔 ","政府指导价","免收","长期","对公/个人","所有营业机构","无","1、发改价格〔2017〕1250号；2、宁银办〔2017〕96号 ","客户未用退回时按退回份数及收费标准退回手续费"]
["000009","运营管理部","本票挂失费","为个人或对公客户办理本票挂失","按票面金额0.1%收取（不足5元收取5元）","政府定价","免收","长期","对公/个人","所有营业机构","无","1、发改价格〔2017〕1250号；2、宁银办〔2017〕96号 "]
["000010","运营管理部","本票工本费","出售给个人或对公客户的本票凭证","0.48元/份 ","政府定价","免收","长期","对公/个人","所有营业机构","无","1、发改价格〔2017〕1250号；2、宁银办〔2017〕96号 "]
["000011","运营管理部","银行汇票手续费","为个人或对公客户办理银行汇票业务","1元/笔  ","政府指导价","免收","长期","对公/个人","所有营业机构","无","1、发改价格〔2017〕1250号；2、宁银办〔2017〕96号 ","客户未用退回时按退回份数及收费标准退回手续费"]
["000012","运营管理部","银行汇票挂失费","为个人或对公客户办理银行汇票挂失","按票面金额0.1%收取（不足5元收取5元）","政府定价","免收","长期","对公/个人","所有营业机构","无","1、发改价格〔2017〕1250号；2、宁银办〔2017〕96号 "]
["000013","运营管理部","银行汇票工本费","出售给个人或对公客户的银行汇票凭证","0.48元/份 ","政府定价","免收","长期","对公/个人","所有营业机构","无","1、发改价格〔2017〕1250号；2、宁银办〔2017〕96号 "]
["000015","运营管理部","商业汇票工本费","通过柜台为对公客户办理商业汇票签发业务的凭证费","0.40元/份","市场调节价","免收","长期","对公","所有营业机构","无","宁银办〔2023〕260号"]
["000030","网络金融部","个人客户普通网银跨行转账/结算汇划费","通过网银将个人客户的资金从本行账户转移到其他银行（含同城和异地）的账户","0.2万元以下（含） 2元/笔\n0.2-0.5万元（含）：5元/笔\n0.5万元-1万元（含）：10元/笔\n1万元-5万元（含）：15元/笔\n5万元以上：转账金额的0.03%，最高50元","市场调节价","免收",{"$f":"VLOOKUP(A12,'2024年9月'!A2:M136,8,1)","v":"2025年1月1日至2025年12月31日"},"个人","所有营业机构","无","\n通知〔2024〕648号\n"]
["000033","授信审批部","贷款合同及承兑协议工本费","签订贷款合同及承兑协议","10万元（含）以下,收10元；10万元以上，收20元","市场调节价","免收",{"$f":"VLOOKUP(A13,'2024年9月'!A3:M137,8,1)","v":"2025年1月1日至2025年12月31日"},"对公/个人","所有营业机构","无","\n通知〔2024〕648号\n","按份收取，贷款发放或承兑汇票承兑后收取"]
["000042","公司金融部","单位结算卡IC卡年费","开卡年费","600元/年","市场调节价","免收",{"$f":"VLOOKUP(A14,'2024年9月'!A4:M138,8,1)","v":"2025年1月1日至2025年12月31日"},"对公","所有营业机构","无","宁银办〔2024〕207号"]
["000043","公司金融部","单位结算卡IC卡工本费","开卡工本费","20元/张","市场调节价","免收",{"$f":"VLOOKUP(A15,'2024年9月'!A5:M139,8,1)","v":"2025年1月1日至2025年12月31日"},"对公","所有营业机构","无","宁银办〔2024〕207号"]
["000059","个人金融部","如意白金IC借记卡开卡工本费","开立如意白金IC借记卡缴纳的工本费","20元/卡","市场调节价","免收","2023年1月1日至2025年12月31日","个人","所有营业机构","无","宁银办〔2022〕208号"]
["000060","个人金融部","如意白金IC借记卡账户管理费","对如意白金IC借记卡账户收取的管理费","200元/季","市场调节价","免收","2023年1月1日至2025年12月31日","个人","所有营业机构","无","宁银办〔2022〕208号"]
["000090","公司金融部","外汇电汇汇出","外汇电汇汇出","汇款金额的1‰，最低50元，最高1000元","市场调节价","免收",{"$f":"VLOOKUP(A18,'2024年9月'!A8:M142,8,1)","v":"2025年1月1日至2025年12月31日"},"对公/个人","所有营业机构","无","宁银办〔2024〕207号"]
["000096","网络金融部","手机银行跨行转账/结算汇划费","通过手机银行将个人客户的资金从本行账户转移到其他银行（含同城和异地）的账户","0.2万元以下（含）： 2元/笔\n0.2-0.5万元（含）：5元/笔\n0.5万元-1万元（含）：10元/笔\n1万元-5万元（含）：15元/笔\n5万元以上：转账金额的0.03%，最高50元","市场调节价","免收",{"$f":"VLOOKUP(A19,'2024年9月'!A9:M143,8,1)","v":"2025年1月1日至2025年12月31日"},"个人","所有营业机构","无","\n通知〔2024〕648号\n"]
["000116","信用卡中心","信用卡跨行还款手续费","持卡人在本行渠道使用他行借记卡向我行信用卡还款时收取的费用","2元/笔","市场调节价","免收","2024年1月1日至2025年12月31日","个人","所有营业机构","无","宁银办〔2023〕260号","本行渠道还款免费，其他渠道还款按转出行或其他机构规定收费。"]
["000129","个人金融部","银联II、III账户借记卡转账手续费","为客户提供他行II、III账户银行卡转入本行I类账户借记卡服务","按交每笔易金额的0.105%(交易金额小于等于50000元,我行目前限额单笔50000元)，最低0.05元/笔收取","市场调节价","免收","\n2024年7月26日至2025年12月31日","个人","所有营业机构","无",null,"2024年7月26日开始执行"]
["000133","网络金融部","网银客户证书年服务费","个人、对公客户CFCA证书管理费用","个人客户：10元/个/年\n对公客户：200元/个/年","市场调节价","免收",{"$f":"VLOOKUP(A22,'2024年9月'!A12:M146,8,1)","v":"2024年10月1日至2025年9月30日"},"对公/个人","所有营业机构","无","\n通知〔2024〕648号\n"]
["000134","个人金融部","借记IC卡年费","借记卡片年度管理费","10元/卡","市场调节价","免收","2023年1月1日至2025年12月31日","个人","所有营业机构","无","宁银办〔2022〕208号"]
["000135","个人金融部","借记IC卡工本费","开立借记IC卡缴纳的工本费","15元/卡","市场调节价","免收","2023年1月1日至2025年12月31日","个人","所有营业机构","无","宁银办〔2022〕208号"]
["000122","个人金融部","借记卡境外（含港、澳地区）跨行ATM机查询手续费","使用借记卡在境外进行查询交易缴纳的手续费","2元/笔","市场调节价","免收","2023年1月1日至2025年12月31日","个人/对公","所有营业机构","无","宁银办〔2022〕208号"]

{"sheet":"柜面结算类","index":2,"n_rows":42,"n_cols":13,"rows_kept":42,"merged":[[0,0,0,12]]}
["宁夏银行服务价目表(柜面结算类）"]
["编号","管理部门","收费项目","服务内容","收费标准","定价形式","优惠政策","优惠政策起止日期","适用客户","适用地区","代收代付业务委托单位名称及咨询投诉电话","收费依据","备注"]
["000001","运营管理部","个人跨行柜台转账汇款手续费","通过柜台将个人客户的资金从本行账户（不含信用卡）转移到其他银行（含同城和异地）的账户","0.2万元以下（含0.2万元），2元/笔；     0.2万元—0.5万元（含0.5万元），5元/笔；0.5万元—1万元（含1万元），10元/笔；   1万元—5万元（含5万元），15元/笔；     5万元以上，每笔按0.03%收取，最高收费50元。客户要求实时到账的加急业务，加收20%的手续费，每笔业务收费上限为50元","政府指导价","无","无","个人","所有营业机构","无","1、发改价格〔2014〕268号；       2、计价格〔2001〕791号","1、转账范围包括向其他银行的本人、其他个人或单位的账户进行资金转移；2、汇款金额不迟于2个工作日内到账（因不可控制的外部原因或存在技术条件制约导致资金不能到账或延迟到账、有特别约定等情况除外）；3、汇划财政金库、救灾、抚恤金等款项，免收跨行转账汇款手续费 "]
["000002","运营管理部","对公跨行柜台转账汇款手续费","通过柜台将对公客户的资金从本行账户转移到其他银行（含同城和异地）的账户","1万元以下（含1万元），5元/笔；         1万元-10万元（含10万元），10元/笔；   10万元-50万元（含50万元），15元/笔 ； 50万元-100万元（含100万元），20元/笔 ；100万元以上，每笔按0.002% 收取，最高收费200元。客户要求实时到账的加急业务，加收20%的手续费，每笔业务收费上限为200元","政府指导价","对于小微企业和个体工商户\n1.1万元以下（含1万元），4.5元/笔；\n2.1万元-10万元（含10万元），9元/笔；\n3.其他汇款金额条款不做优惠",{"$f":"VLOOKUP(A4,'2024年9月'!A2:M136,8,1)","v":"2025年1月1日至2025年12月31日"},"对公","所有营业机构","无","1、发改价格〔2014〕268号；       2、银发〔2021〕169号 \n3、宁银办〔2024〕207号\n","1、转账范围包括向其他银行的本单位、其他单位或个人的账户进行资金转移；2、汇款金额不迟于2个工作日内到账（因不可控制的外部原因或存在技术条件制约导致资金不能到账或延迟到账、有特别约定等情况除外）；3、汇划财政金库、救灾、抚恤金等款项，免收跨行转账汇款手续费；4、汇划职工工资、退休金、养老金等每笔收费2元"]
["000003","运营管理部","个人现金汇款手续费","将个人客户现金汇入异地本行账户或汇入其他银行（含同城和异地）的账户","每笔按汇款金额的0.5%收取，最高收费50元。客户要求实时到账的加急业务，加收20%的手续费，每笔业务收费上限为50元","政府指导价","无","无","个人","所有营业机构","无","1、发改价格〔2014〕268号；       2、计价格〔2001〕791号","1、汇款金额不迟于2个工作日内到账（因不可控制的外部原因或存在技术条件制约导致资金不能到账或延迟到账、有特别约定等情况除外）；2、汇划财政金库、救灾、抚恤金等款项，免收跨行汇款手续费"]
["000005","运营管理部","支票手续费","为个人或对公客户办理支票业务","1元/笔 ","政府指导价","无","无","对公/个人","所有营业机构","无","发改价格〔2014〕268号","客户未用退回时按退回份数及收费标准退回手续费"]
["000006","运营管理部","支票挂失费","为个人或对公客户办理支票挂失","按票面金额0.1%收取（不足5元收取5元）","政府定价","免收","长期","对公/个人","所有营业机构","无","1、银发〔2021〕169号 ；\n2、宁银办〔2021〕176号"]
["000007","运营管理部","支票工本费","出售给个人或对公客户的支票凭证","0.40元/份 ","政府定价","免收","长期","对公/个人","所有营业机构","无","1、银发〔2021〕169号 ；\n2、宁银办〔2021〕176号"]
["000008","运营管理部","本票手续费","为个人或对公客户办理本票业务","1元/笔 ","政府指导价","免收","长期","对公/个人","所有营业机构","无","1、发改价格〔2017〕1250号；2、宁夏银办〔2017〕96号 ","客户未用退回时按退回份数及收费标准退回手续费"]
["000009","运营管理部","本票挂失费","为个人或对公客户办理本票挂失","按票面金额0.1%收取（不足5元收取5元）","政府定价","免收","长期","对公/个人","所有营业机构","无","1、发改价格〔2017〕1250号；2、宁夏银办〔2017〕96号 "]
["000010","运营管理部","本票工本费","出售给个人或对公客户的本票凭证","0.48元/份 ","政府定价","免收","长期","对公/个人","所有营业机构","无","1、发改价格〔2017〕1250号；2、宁夏银办〔2017〕96号 "]
["000011","运营管理部","银行汇票手续费","为个人或对公客户办理银行汇票业务","1元/笔  ","政府指导价","免收","长期","对公/个人","所有营业机构","无","1、发改价格〔2017〕1250号；2、宁夏银办〔2017〕96号 ","客户未用退回时按退回份数及收费标准退回手续费"]
["000012","运营管理部","银行汇票挂失费","为个人或对公客户办理银行汇票挂失","按票面金额0.1%收取（不足5元收取5元）","政府定价","免收","长期","对公/个人","所有营业机构","无","1、发改价格〔2017〕1250号；2、宁夏银办〔2017〕96号 "]
["000013","运营管理部","银行汇票工本费","出售给个人或对公客户的银行汇票凭证","0.48元/份 ","政府定价","免收","长期","对公/个人","所有营业机构","无","1、发改价格〔2017〕1250号；2、宁夏银办〔2017〕96号 "]
["000014","运营管理部","银行承兑汇票手续费","为对公客户办理银行承兑汇票的签发、承兑业务","按票面金额的0.5‰","市场调节价","无","无","对公","所有营业机构","无"," 宁银办〔2016〕10号 "]
["000015","运营管理部","商业汇票工本费","通过柜台为对公客户办理商业汇票签发业务的凭证费","0.40元/份","市场调节价","免收","长期","对公","所有营业机构","无","宁银办〔2023〕260号"]
["000016","运营管理部","银行汇票汇划费","为对公或个人客户办理银行汇票资金划转","2.5元/笔","市场调节价","无","无","对公/个人","所有营业机构","无"," 宁银办〔2016〕10号 "]
["000017","运营管理部","结算专用IC卡工本费","开立单位结算账户，提供当地人民银行规定的结算专用IC卡凭证费","60元/张","市场调节价","无","无","对公","天津分行辖属营业机构","无","按照天津人行规定价格收取"]
["000018","运营管理部","委托收款及托收承付手续费","为客户办理委托收款及托收承付业务","1元/笔","市场调节价","无","无","对公/个人","所有营业机构","无"," 宁银办〔2016〕10号 "]
["000019","运营管理部","委托收款及托收承付邮寄费  ","为客户办理委托收款及托收承付业务邮寄费","普通信件2.50元/笔；特快专递（EMS）21.50元/笔","市场调节价","无","无","对公/个人","所有营业机构","无"," 宁银办〔2016〕10号 "]
["000020","运营管理部","委托收款及托收承付工本费  ","通过柜台为客户办理委托收款及托收承付业务凭证费","0.20元/份","市场调节价","无","无","对公/个人","所有营业机构","无"," 计价费〔1996〕184号；       2、银发〔1997〕393 号"]
["000021","运营管理部","储蓄异地托收手续费","为客户办理储蓄异地托收业务","按托收金额的1%收取，最低1元/笔，最高50元/笔","市场调节价","无","无","个人","所有营业机构","无"," 宁银办〔2016〕10号 "]
["000022","运营管理部","银行承兑汇票查询手续费","为客户办理银行承兑汇票查询业务","30元/笔","市场调节价","无","无","对公","所有营业机构","无"," 宁银办〔2016〕10号 "]
["000023","运营管理部","汇兑业务汇款人主动查询手续费 ","应汇款人主动要求，办理汇款查询业务 ","10元/笔","市场调节价","无","无","对公/个人","所有营业机构","无"," 宁银办〔2016〕10号 "]
["000024","运营管理部","银行本汇票申请书、汇兑凭证工本费 ","通过柜台向对公客户出售银行本汇票申请书、汇兑凭证的工本费 ","0.40元/份 ","市场调节价","无","无","对公","所有营业机构","无","宁银办〔2014〕272号"]
["000025","运营管理部","存单、折、借记卡挂失手续费 ","为个人客户办理存单、折、借记卡挂失业务","10元/笔","市场调节价","卡bin621417社保卡挂失手续费免收","2023年1月1日至2025年12月31日","个人","所有营业机构","无","宁银办〔2022〕208号"]
["000026","运营管理部","开立存款证明手续费","为客户开立存款证明","个人客户20元/份；对公客户200元/份","市场调节价","无","无","对公/个人","所有营业机构","无"," 宁银办〔2016〕10号 "]
["000027","运营管理部","开立银行询证函手续费","开立银行账户询证函","100元/份","市场调节价","对小微企业免收",{"$f":"VLOOKUP(A28,'2024年9月'!A26:M160,8,1)","v":"2025年1月1日至2025年12月31日"},"对公","所有营业机构","无","\n通知〔2024〕648号\n"]
["000028","运营管理部","预留印鉴变更手续费","为对公客户或个人客户办理预留印鉴变更业务","10元/笔","市场调节价","无","无","对公/个人","所有营业机构","无"," 宁银办〔2016〕10号 "]
["000029","运营管理部","预留印鉴挂失手续费 ","为对公客户或个人客户办理预留印鉴挂失业务","50元/笔","市场调节价","无","无","对公/个人","所有营业机构","无"," 宁银办〔2016〕10号 ","收取挂失手续费后不再收取变更手续费"]
["000049","运营管理部","小额支付跨行通手续费（西咸支付一体化）","为对公或个人客户办理小额支付跨行通业务 ","2元/笔","市场调节价","无","无","对公/个人","仅限西安分行各营业机构","无","宁银办〔2018〕170号"]
["000050","运营管理部","单位银行结算账户开户手续费 （不含保证金账户）","办理单位银行结算账户开户业务","100元/户","市场调节价","对于小微企业和个体工商户在同一银行开立的首个或者指定一个单位结算账户50元/户",{"$f":"VLOOKUP(A32,'2024年9月'!A30:M164,8,1)","v":"2025年1月1日至2025年12月31日"},"对公","所有营业机构","无","1、银发〔2021〕169号 ；\n2、宁银办〔2024〕207号\n"]
["000051","运营管理部","补制回单 （含电子缴税凭证）手续费","为对公或个人客户补制各类业务回单 ","1元/页","市场调节价","无","无","对公/个人","所有营业机构","无","宁银办〔2016〕150号"]
["000052","运营管理部","补制对账单手续费","为对公客户补制已向客户发放过的账户对账单","1元/页","市场调节价","无","无","对公","所有营业机构","无"," 宁银办〔2020〕23号 "]
["000053","运营管理部","单位存折、单位结算卡、单位定期存款开户证实书挂失手续费","为对公客户办理单位存折、单位结算卡、定期存款开户证实书挂失业务","10元/份","市场调节价","无","无","对公","所有营业机构","无","宁银办〔2019〕106号"]
["000056","运营管理部","代保管物品管理费","为对公或个人客户提供有价单证及贵重物品代保管服务","按月收取， 5元/件/月 ","市场调节价","无","无","对公/个人","所有营业机构","无","宁银办〔2014〕272号"]
["000057","运营管理部","资金监管业务管理费","为对公客户或个人客户提供资金监管服务","原则上50元/户/月，按月收取，实际执行按双方签订的合同收取 ","市场调节价","无","无","对公/个人","所有营业机构","无"," 宁银办〔2016〕10号 "]
["000061","运营管理部","具有圈存功能的支付密码器工本费","为对公客户提供圈存、支付密码服务","350元/台，实际执行以银行与出售方协商签订的合同约定为准","市场调节价","无","无","对公","仅限天津分行各营业机构","无","宁银办〔2016〕104号"]
["000062","运营管理部","普通支付密码器工本费","为对公客户提供支付密码服务","320元/台，实际执行以银行与出售方协商签订的合同约定为准","市场调节价","无","无","对公","除天津分行以外的其他营业机构","无","宁银办〔2014〕272号"]
["000093","运营管理部","银行承兑汇票挂失费","为对公客户办理银行承兑汇票的挂失止付业务","按票面金额0.1%收取（不足5元收取5元）","市场调节价","无","无"," 对公 ","所有营业机构","无","宁银办〔2016〕240号"]
["000094","运营管理部","城商行网络支付密码汇款手续费","为个人客户办理城市商业银行支付清算系统的网络支付密码汇款业务","5元 /笔","市场调节价","无","无","个人","所有营业机构","无"," 宁银办〔2016〕10号 "]
["000097","运营管理部","自助服务终端跨行转账/结算汇划费","通过自助服务终端设备将个人客户的资金从本行账户转移到其他银行（含同城和异地）的账户","0.2万元以下（含）： 2元/笔\n0.2-0.5万元（含）：5元/笔\n0.5万元-1万元（含）：10元/笔\n1万元-5万元（含）：15元/笔\n5万元以上：转账金额的0.03%，最高50元","市场调节价","按6折收取",{"$f":"VLOOKUP(A42,'2024年9月'!A40:M174,8,1)","v":"2025年1月1日至2025年12月31日"},"个人","所有营业机构","无","\n通知〔2024〕648号\n"]

{"sheet":"国际结算类","index":3,"n_rows":49,"n_cols":13,"rows_kept":49,"merged":[[0,0,0,12],[6,12,34,12]]}
["宁夏银行服务价目表(国际结算类）"]
["编号","管理部门","收费项目","服务内容","收费标准","定价形式","优惠政策","优惠政策起止日期","适用客户","适用地区","代收代付业务委托单位名称及咨询投诉电话","收费依据","备注"]
["000044","公司金融部","国内信用证转让费","根据开证行指示办理信用证转让","转让金额的1‰，最低300元，最高1000元。","市场调节价","无","无","对公","所有营业机构","无","宁银办〔2017〕29号"]
["000054","公司金融部","国内信用证确认到期付款费","承诺付款","不超过承诺付款敞口金额的4.5‰，按季收取。全额保证金开证可降低收费标准或免收。","市场调节价","无","无","对公","所有营业机构","无","宁银办〔2022〕208号","具体按协议价格收取"]
["000055","公司金融部","国内信用证不符点处理费","处理不符点单据","100元/笔","市场调节价","无","无","对公","所有营业机构","无","宁银办〔2017〕29号"]
["000058","公司金融部","日元汇款全额到账","为客户提供日元汇款全额到账服务","汇款金额的万分之五，最低2500日元。","市场调节价","无","无","对公/个人","所有营业机构","无","宁银办〔2016〕240号"]
["000063","公司金融部","进口信用证开证","为客户办理信用证开证","全额保证金的按开证金额的1.5‰收取，最低300元；非全额保证金的，有效期三个月以上的，每三个月增收开证金额的0.5‰；一年期（不含）以上的信用证可按协议价收取","市场调节价","无","无","对公","所有营业机构","无","宁银办〔2014〕272号","1、对于重点外汇客户可按照我行费率优惠标准执行。2、跨境人民币结算项下国际结算业务服务价格参照上述标准执行，跨境人民币汇款手续费参照汇出境外汇款手续费执行。3、通过网上银行办理的国际业务，参照本表相关收费标准。4、快邮/快递费以当地快递公司的收费标准为依据，客户可与快递公司自行结算。凡业务发生的境外银行收费，据实收取。"]
["000064","公司金融部","进口信用证修改","修改信用证金额、效期及其它","100元/笔。修改增额的，按增额的1.5‰收取；延展效期超过三个月的,每三个月增收修改日原信用证余额的0.5‰，不另收取修改手续费","市场调节价","无","无","对公","所有营业机构","无","宁银办〔2014〕272号"]
["000065","公司金融部","进口信用证承兑","承诺付款","承兑敞口的0.5‰-4.5‰，按季收取。全额保证金开证可降低收费标准或免收。","市场调节价","无","无","对公","所有营业机构","无","宁银办〔2017〕199号"]
["000066","公司金融部","进口信用证不符点费","处理不符点单据","60美元/笔 ","市场调节价","无","无","对公","所有营业机构","无","宁银办〔2014〕272号"]
["000067","公司金融部","进口信用证退单/撤证","为客户办理信用证退单、撤证","200元/笔","市场调节价","无","无","对公","所有营业机构","无","宁银办〔2014〕272号"]
["000068","公司金融部","进口信用证付款费","信用证付款","40美元/笔","市场调节价","无","无","对公","所有营业机构","无","宁银办〔2014〕272号"]
["000069","公司金融部","出口信用证通知/转递","收到开证行开立的信用证，为客户提供通知、转递服务","200元/笔","市场调节价","在我行交单可免收","长期","对公","所有营业机构","无"," 宁银办〔2016〕10号 "]
["000070","公司金融部","出口信用证修改通知","修改信用证通知","100元/笔","市场调节价","在我行交单可免收","长期","对公","所有营业机构","无"," 宁银办〔2016〕10号 "]
["000071","公司金融部","出口信用证保兑","对信用证加保","保兑金额的1.25‰，最低300元，按季收取","市场调节价","无","无","对公","所有营业机构","无","宁银办〔2014〕272号"]
["000072","公司金融部","出口信用证转让","根据开证行指示办理信用证转让","转让金额的1.5‰，最低300元,最高1000元","市场调节价","无","无","对公","所有营业机构","无","宁银办〔2014〕272号"]
["000073","公司金融部","出口信用证议付/验单","信用证项下单据审核、议付","议付金额的1.25‰，最低200元","市场调节价","无","无","对公","所有营业机构","无","宁银办〔2014〕272号"]
["000074","公司金融部","出口信用证撤证/注销","信用证撤证、注销","100元/笔 ","市场调节价","无","无","对公","所有营业机构","无","宁银办〔2014〕272号"]
["000075","公司金融部","出口信用证不符点交涉","与开证行交涉","200元/笔","市场调节价","无","无","对公","所有营业机构","无","宁银办〔2014〕272号"]
["000076","公司金融部","出口托收光票托收","光票托收","托收金额的1‰，最低50元最高1000元","市场调节价","无","无","对公","所有营业机构","无","宁银办〔2014〕272号"]
["000077","公司金融部","出口托收跟单托收","跟单托收","托收金额的1‰，最低100元最高2000元","市场调节价","无","无","对公","所有营业机构","无","宁银办〔2014〕272号"]
["000078","公司金融部","出口托收授权无偿放单","不付款放单","100元/笔 ","市场调节价","无","无","对公","所有营业机构","无","宁银办〔2014〕272号"]
["000079","公司金融部","出口托收退单/退票","退回单据","100元/笔","市场调节价","无","无","对公","所有营业机构","无","宁银办〔2014〕272号"]
["000080","公司金融部","出口托收修改托收指示","应出口商指示修改托收单据","100元/笔","市场调节价","无","无","对公","所有营业机构","无","宁银办〔2014〕272号"]
["000081","公司金融部","进口代收光票代收","光票代收","代收金额的1‰，最低50元最高1000元","市场调节价","无","无","对公","所有营业机构","无","宁银办〔2014〕272号"]
["000082","公司金融部","进口代收跟单代收","跟单代收","代收金额的1‰，最低100元最高2000元","市场调节价","无","无","对公","所有营业机构","无","宁银办〔2014〕272号"]
["000083","公司金融部","进口代收拒付退单/退票","根据委托行指示退单、退票","100元/笔","市场调节价","无","无","对公","所有营业机构","无","宁银办〔2014〕272号"]
["000084","公司金融部","进口代收付款费","为客户提供款项偿付","40美元/笔","市场调节价","无","无","对公","所有营业机构","无","宁银办〔2014〕272号"]
["000085","公司金融部","外币保函开立","为客户提供开立外币保函的服务","非融资性保函：0.5‰-2‰，按季收取，最低300元；融资性保函：5‰-7‰，按季收取，最低1000元。根据业务风险水平和担保、客户授信情况等确定具体费率标准。","市场调节价","无","无","对公","所有营业机构","无"," 宁银办〔2016〕10号 "]
["000086","公司金融部","外币保函转开","为客户提供外币保函转开的服务","保函金额的2‰，最低300元最高1000元，按季收取","市场调节价","无","无","对公","所有营业机构","无","宁银办〔2014〕272号"]
["000087","公司金融部","外币保函的通知/转递","银行为客户提供的外币保函的通知/转递的服务","200元/笔","市场调节价","无","无","对公","所有营业机构","无","宁银办〔2014〕272号"]
["000088","公司金融部","外币保函的修改/注销","应申请人要求修改/注销外币保函","100元/笔，修改保函增额时，按开立保函费率计算","市场调节价","无","无","对公","所有营业机构","无","宁银办〔2014〕272号"]
["000089","公司金融部","国际业务提货担保","应客户申请银行提供的担保先行提货服务","提货担保金额的0.5‰，最低300元","市场调节价","无","无","对公","所有营业机构","无","宁银办〔2014〕272号"]
["000090","公司金融部","外汇电汇汇出","外汇电汇汇出","汇款金额的1‰，最低50元，最高1000元","市场调节价","免收","2025年1月1日至2025年12月31日","对公/个人","所有营业机构","无","宁银办〔2024〕207号"]
["000091","公司金融部","外汇汇款修改/退汇/止付","外汇汇款修改/退汇/止付","100元/笔","市场调节价","无","无","对公/个人","所有营业机构","无"," 宁银办〔2017〕199号"]
["000098","公司金融部","国际业务查询/催收","国际业务查询/催收","100元/笔，向国外银行追索迟付利息，按追索金额×追索日LIBOR利率×迟付天数/360计算","市场调节价","无","无","对公/个人","所有营业机构","无","宁银办〔2014〕272号"]
["000099","公司金融部","外币资信证明","外币资信证明","500元/笔","市场调节价","无","无","对公","所有营业机构","无","宁银办〔2014〕272号"]
["000100","公司金融部","国际业务处理费","为客户提供预开信用证、单证预审、寄单再修改、提单背书、无偿放单、补换单、出口信用证效期内撤证、出口撤证恢复、信用证挂失等服务","100元/笔","市场调节价","无","无","对公/个人","所有营业机构","无","宁银办〔2014〕272号"]
["000101","公司金融部","国际业务电报费","SWIFT发报","汇款业务：100元；全电开证：300元；其它业务处理：100-300元。","市场调节价","免收汇款业务手续费，全电开证及其它业务处理按正常收费标准执行","2025年1月1日至2025年12月31日","对公/个人","所有营业机构","无","宁银办〔2024〕207号"]
["000102","公司金融部","国际业务快邮费","邮递公司提供的邮递服务","以业务办理当天快递公司实际收费标准为准","市场调节价","无","无","对公/个人","所有营业机构",null,"宁银办〔2024〕207号"]
["000103","公司金融部","国内信用证开证手续费","开立国内信用证","开证金额的0.5‰-1.5‰，最低100元","市场调节价","无","无","对公","所有营业机构","无","宁银办〔2020〕343号","具体按协议价格收取。"]
["000104","公司金融部","国内信用证修改手续费","修改国内信用证金额、期限及其它","100元/笔，修改增额的，按增额的0.5‰-1.5‰收取，不另收取修改手续费","市场调节价","无","无","对公","所有营业机构","无","宁银办〔2020〕343号","具体按协议价格收取。"]
["000105","公司金融部","国内信用证通知/修改通知手续费","国内信用证通知/修改通知手续费","50元/笔","市场调节价","无","无","对公","所有营业机构","无"," 宁银办〔2016〕10号 "]
["000106","公司金融部","国内信用证议付手续费","议付国内信用证","不超过议付金额的1‰。","市场调节价","无","无","对公","所有营业机构","无","宁银办〔2017〕199号","具体按协议价格收取"]
["000107","公司金融部","国内信用证收单单据处理费","国内信用证项下单据的审核处理","200元/笔","市场调节价","无","无","对公","所有营业机构","无","宁银办〔2014〕272号"]
["000108","公司金融部","国内信用证修改单据费","国内信用证修改单据","50元/笔","市场调节价","无","无","对公","所有营业机构","无","宁银办〔2014〕272号"]
["000109","公司金融部","国内信用证邮寄费","寄送国内信用证项下单据","按实收取","市场调节价","无","无","对公","所有营业机构","无","宁银办〔2014〕272号"]
["000124","公司金融部","福费廷业务手续费","提供债权买断、无追索权融资及风险规避等服务","协议定价，最低300元/笔","市场调节价","无","无","对公","所有营业机构","无","宁银办〔2019〕106号"]
["000125","公司金融部","欧元汇款全额到账","为客户提供欧元汇款全额到账服务","40欧元/笔","市场调节价","无","无","对公/个人","所有营业机构","无","宁银办〔2020〕23号"]

{"sheet":"电子银行类","index":4,"n_rows":11,"n_cols":13,"rows_kept":11,"merged":[[0,0,0,12]]}
["宁夏银行服务价目表（电子银行类）"]
["编号","管理部门","收费项目","服务内容","收费标准","定价形式","优惠政策","优惠政策起止日期","适用客户","适用地区","代收代付业务委托单位名称及咨询投诉电话","收费依据","备注"]
["000004","网络金融部","商户结算手续费","为特约商户提供B2B、B2C等电子支付收单服务及基于微信、支付宝等第三方线下扫码支付、线上扫码或公众号支付的互联网收单服务","协议定价","市场调节价","无",{"$f":"VLOOKUP(A3,'2024年9月'!A2:M136,8,1)","v":"无"},"对公/个人","所有营业机构","无","宁银办〔2017〕142号"]
["000030","网络金融部","个人客户普通网银跨行转账/结算汇划费","通过网银将个人客户的资金从本行账户转移到其他银行（含同城和异地）的账户","0.2万元以下（含） 2元/笔\n0.2-0.5万元（含）：5元/笔\n0.5万元-1万元（含）：10元/笔\n1万元-5万元（含）：15元/笔\n5万元以上：转账金额的0.03%，最高50元","市场调节价","免收",{"$f":"VLOOKUP(A4,'2024年9月'!A3:M137,8,1)","v":"2025年1月1日至2025年12月31日"},"个人","所有营业机构","无","\n通知〔2024〕648号\n"]
["000031","网络金融部","对公客户普通网银跨行转账/结算汇划费","通过网银将对公客户的资金从本行账户转移到其他银行（含同城和异地）的账户","\n1万元以下（含）：5元/笔\n1万元-10万元（含）：10元/笔\n10万元-50万元（含）：15元/笔\n50万元-100万元（含）：20元/笔\n100万元以上：转账金额的0.002%，最高200元\n","市场调节价","按6折收取",{"$f":"VLOOKUP(A5,'2024年9月'!A4:M138,8,1)","v":"2025年1月1日至2025年12月31日"},"对公","所有营业机构","无","通知〔2024〕648号"]
["000048","网络金融部","商户收单手续费","向商户提供收单结算服务","协议定价","政府指导价、市场调节价","对标准类商户借记卡刷卡收单手续费（含小微企业和个体工商户）实行9折优惠，封顶值维持不变；对优惠类商户银联卡刷卡收单手续费继续实行7.8折优惠，具体依据监管部门、中国银联等机构相关规定确定",{"$f":"VLOOKUP(A6,'2024年9月'!A5:M139,8,1)","v":"2025年1月1日至2025年12月31日"},"对公/个人","所有营业机构","无","1、发改价格〔2016〕557号；2、银发〔2021〕169号 ；\n3、宁银办〔2024〕207号\n"]
["000096","网络金融部","手机银行跨行转账/结算汇划费","通过手机银行将个人客户的资金从本行账户转移到其他银行（含同城和异地）的账户","0.2万元以下（含）： 2元/笔\n0.2-0.5万元（含）：5元/笔\n0.5万元-1万元（含）：10元/笔\n1万元-5万元（含）：15元/笔\n5万元以上：转账金额的0.03%，最高50元","市场调节价","免收",{"$f":"VLOOKUP(A7,'2024年9月'!A6:M140,8,1)","v":"2025年1月1日至2025年12月31日"},"个人","所有营业机构","无","\n通知〔2024〕648号\n"]
["000128","网络金融部","银企直联客户软件服务费","对公客户申请银企直联业务对接软件使用费用","协议定价","市场调节价","无",{"$f":"VLOOKUP(A8,'2024年9月'!A7:M141,8,1)","v":"无"},"对公","所有营业机构","无","宁银办〔2019〕22号"]
["000130","网络金融部","ATM跨行转账手续费","本行ATM提供跨行转账功能；本行卡支持ATM跨行转账功能","跨行ATM转账交易手续费标准：\n2000元以下（含）:1.5元/笔\n2000元—1万元（含）：3元/笔\n1万元以上：5元/笔","市场调节价","无",{"$f":"VLOOKUP(A9,'2024年9月'!A8:M142,8,1)","v":"无"},"个人","所有营业机构","无","宁银办〔2023〕65号 "]
["000132","网络金融部","网银证书工本费","USB-KEY证书工本费","35元/个","市场调节价","首次申请、到期更换的网银证书免工本费",{"$f":"VLOOKUP(A10,'2024年9月'!A9:M143,8,1)","v":"2024年10月1日至2025年9月30日"},"对公/个人","所有营业机构","无","\n通知〔2024〕648号\n","损坏、丢失的按收费标准收取。小微企业和个体工商户按6折收取。"]
["000133","网络金融部","网银客户证书年服务费","个人、对公客户CFCA证书管理费用","个人客户：10元/个/年\n对公客户：200元/个/年","市场调节价","免收",{"$f":"VLOOKUP(A11,'2024年9月'!A10:M144,8,1)","v":"2024年10月1日至2025年9月30日"},"对公/个人","所有营业机构","无","\n通知〔2024〕648号\n"]

{"sheet":"银行卡类","index":5,"n_rows":20,"n_cols":13,"rows_kept":20,"merged":[[0,0,0,12]]}
["宁夏银行服务价目表（银行卡类）"]
["编号","管理部门","收费项目","服务内容","收费标准","定价形式","优惠政策","优惠政策起止日期","适用客户","适用地区","代收代付业务委托单位名称及咨询投诉电话","收费依据","备注"]
["000032","信用卡中心","信用卡违约金","因持卡人未在到期还款日前偿还最低还款额而收取的费用","最低还款额未还部分的5%，按月计收,最低1元标准。\n","市场调节价","无",{"$f":"VLOOKUP(A3,'2024年9月'!A2:M136,8,1)","v":"无"},"个人","所有营业机构","无","宁银办〔2018〕170号"]
["000037","信用卡中心","信用卡在境内跨行ATM机上取款手续费","使用信用卡在境内跨行ATM机上取款缴纳的费用","取款金额的0.5%+2元","市场调节价","无",{"$f":"VLOOKUP(A4,'2024年9月'!A3:M137,8,1)","v":"无"},"个人","所有营业机构","无","宁银办〔2018〕170号"]
["000038","信用卡中心","信用卡境外取现手续费","使用信用卡在境外ATM 机上取款缴纳的费用","12元/笔","市场调节价","无",{"$f":"VLOOKUP(A5,'2024年9月'!A4:M138,8,1)","v":"无"},"个人","所有营业机构","无","宁银办〔2018〕170号"]
["000039","信用卡中心","信用卡跨境查询手续费","使用信用卡在境外进行查询交易缴纳的手续费","2元/笔","市场调节价","无",{"$f":"VLOOKUP(A6,'2024年9月'!A5:M139,8,1)","v":"无"},"个人","所有营业机构","无","宁银办〔2018〕170号"]
["000040","信用卡中心","信用卡ATM取款单据、POS消费单据调单费","调取信用卡在ATM机或POS机交易单据缴纳的费用","10元/笔","市场调节价","无",{"$f":"VLOOKUP(A7,'2024年9月'!A6:M140,8,1)","v":"无"},"个人","所有营业机构","无","宁银办〔2018〕170号"]
["000041","信用卡中心","信用卡年费","按信用卡的信用等级及产品类别享有相应的信用卡功能服务","1.金卡：主卡80元，副卡40元；\n2.普卡：主卡40元，副卡20元；\n3.如意白金卡：主卡年费480元，副卡240元；","市场调节价","1.金卡、普卡：首年免年费，当年消费+取现满3次或900元免次年年费。\n2.如意白金卡：首年免年费，当年消费+取现满12次免次年年费或50000积分兑年费。\n3.已收取信用卡年费的，客户提出申请并在年费收取日起3个月内达到上述年费减免条件的，退还已收的年费。",{"$f":"VLOOKUP(A8,'2024年9月'!A7:M141,8,1)","v":"2024年1月1日至2025年12月31日"},"个人","所有营业机构","无","宁银办〔2023〕260号","如意白金卡包括尊尚白金卡、车友白金卡、精英白金卡、移动联名白金卡等。"]
["000042","公司金融部","单位结算卡IC卡年费","开卡年费","600元/年","市场调节价","免收",{"$f":"VLOOKUP(A9,'2024年9月'!A8:M142,8,1)","v":"2025年1月1日至2025年12月31日"},"对公","所有营业机构","无","宁银办〔2024〕207号"]
["000043","公司金融部","单位结算卡IC卡工本费","开卡工本费","20元/张","市场调节价","免收",{"$f":"VLOOKUP(A10,'2024年9月'!A9:M143,8,1)","v":"2025年1月1日至2025年12月31日"},"对公","所有营业机构","无","宁银办〔2024〕207号"]
["000045","信用卡中心","信用卡正式挂失手续费","挂失信用卡缴纳的费用","30元/次","市场调节价","无",{"$f":"VLOOKUP(A11,'2024年9月'!A10:M144,8,1)","v":"无"},"个人","所有营业机构","无","宁银办〔2019〕22号"]
["000047","信用卡中心","信用卡工本费","为客户办理信用卡新发、换卡业务；并将围绕特殊工艺、材质、设计等整合自身服务与外部资源，开发具有特殊工艺的卡片产品，满足客户多样化需求","\n1.非特殊设计芯片卡：10元/卡\n3.其他特殊工艺信用卡：根据协议约定收取","市场调节价","\n1.新发卡（含到期续卡）工本费：免收\n2.换卡工本费：\n（1）非特殊设计芯片卡：暂免收取",{"$f":"VLOOKUP(A12,'2024年9月'!A11:M145,8,1)","v":"2025年1月1日至2025年12月31日"},"个人","所有营业机构","无","宁银办〔2024〕207号"]
["000059","个人金融部","如意白金IC借记卡开卡工本费","开立如意白金IC借记卡缴纳的工本费","20元/卡","市场调节价","免收",{"$f":"VLOOKUP(A13,'2024年9月'!A12:M146,8,1)","v":"2023年1月1日至2025年12月31日"},"个人","所有营业机构","无","宁银办〔2022〕208号"]
["000060","个人金融部","如意白金IC借记卡账户管理费","对如意白金IC借记卡账户收取的管理费","200元/季","市场调节价","免收",{"$f":"VLOOKUP(A14,'2024年9月'!A13:M147,8,1)","v":"2023年1月1日至2025年12月31日"},"个人","所有营业机构","无","宁银办〔2022〕208号"]
["000116","信用卡中心","信用卡跨行还款手续费","持卡人在本行渠道使用他行借记卡向我行信用卡还款时收取的费用","2元/笔","市场调节价","免收",{"$f":"VLOOKUP(A15,'2024年9月'!A14:M148,8,1)","v":"2024年1月1日至2025年12月31日"},"个人","所有营业机构","无","宁银办〔2023〕260号","本行渠道还款免费，其他渠道还款按转出行或其他机构规定收费。"]
["000121","个人金融部","借记卡跨行ATM取款手续费\n","使用借记卡在境内、境外ATM机上提取现金缴纳的费用","境内取款：每笔取款金额3.5元/笔\n境外取款：12元/笔","政府指导价、市场调节价","1.宁夏地区发卡境内外跨行ATM取款每卡每月前10笔免收手续费；\n2.西安地区发卡境内跨行ATM取款每卡每月前10笔免收手续费，境外跨行ATM取款不免手续费；\n3.天津地区发卡境内、境外跨行ATM取款每卡每月前10笔分别免收手续费；\n4.社会保障卡、个人基本养老金借记卡、乡村振兴卡、八一拥军卡境内外跨行ATM取款免收手续费。",{"$f":"VLOOKUP(A16,'2024年9月'!A15:M149,8,1)","v":"2024年10月1日至2025年9月30日"},"个人/对公","所有营业机构","无","1、银发〔2021〕169号 ；\n2、通知〔2024〕648号\n"]
["000122","个人金融部","借记卡境外（含港、澳地区）跨行ATM机查询手续费","使用借记卡在境外进行查询交易缴纳的手续费","2元/笔","市场调节价","免收",{"$f":"VLOOKUP(A17,'2024年9月'!A16:M150,8,1)","v":"2023年1月1日至2025年12月31日"},"个人/对公","所有营业机构","无","宁银办〔2022〕208号"]
["000129","个人金融部","银联II、III账户借记卡转账手续费","为客户提供他行II、III账户银行卡转入本行I类账户借记卡服务","按交每笔易金额的0.105%(交易金额小于等于50000元,我行目前限额单笔50000元)，最低0.05元/笔收取","市场调节价","减免",{"$f":"VLOOKUP(A18,'2024年9月'!A17:M151,8,1)","v":"\n2024年7月26日至2025年12月31日"},"个人","所有营业机构","无",null,"2024年7月26日开始执行"]
["000134","个人金融部","借记IC卡年费","借记卡片年度管理费","10元/卡","市场调节价","免收",{"$f":"VLOOKUP(A19,'2024年9月'!A18:M152,8,1)","v":"2023年1月1日至2025年12月31日"},"个人","所有营业机构","无","宁银办〔2022〕208号"]
["000135","个人金融部","借记IC卡工本费","开立借记IC卡缴纳的工本费","15元/卡","市场调节价","免收",{"$f":"VLOOKUP(A20,'2024年9月'!A19:M153,8,1)","v":"2023年1月1日至2025年12月31日"},"个人","所有营业机构","无","宁银办〔2022〕208号"]

{"sheet":"代理业务类","index":6,"n_rows":12,"n_cols":13,"rows_kept":12,"merged":[[0,0,0,12]]}
["宁夏银行服务价目表（代理业务类）"]
["编号","管理部门","收费项目","服务内容","收费标准","定价形式","优惠政策","优惠政策起止日期","适用客户","适用地区","代收代付业务委托单位名称及咨询投诉电话","收费依据","备注"]
["000095","个人金融部","保险代理业务手续费","代理销售保险业务","业务合作协议约定标准","市场调节价","无","无","对公 ","所有营业机构","以我行合作单位及电话为准,详情请咨询09515058832"," 宁银办〔2016〕10号 "]
["000118","个人金融部","代理贵金属销售手续费","代理销售实物金","业务合作协议约定标准","市场调节价","无","无","对公","所有营业机构","以我行合作单位及电话为准,详情请咨询09515058832"," 宁银办〔2016〕10号 "]
["000119","个人金融部","代理贵金属回购手续费","代理回购实物金","业务合作协议约定标准","市场调节价","无","无","对公","所有营业机构","以我行合作单位及电话为准,详情请咨询09515058832"," 宁银办〔2016〕10号 "]
["000131","个人金融部","基金销售业务手续费","代理销售证券投资基金业务","业务合作协议约定标准","市场调节价","无","无","对公 ","所有营业机构","无","宁银办〔2016〕240号"]
["000111","公司金融部","代理电信用户缴费手续费","代理电信公司缴费业务","协议定价","市场调节价","无","无","对公","宁夏地区营业机构","中国电信宁夏分公司 电话：6035901","宁银办〔2014〕272号"]
["000112","公司金融部","代理联通用户通信费、预缴费、滞纳金等手续费","代理固定通信、移动通信业务以及在协议有效期内开办的其他业务的通信费、预缴费、滞纳金等","协议定价","市场调节价","无","无","对公","宁夏地区营业机构","中国联通宁夏分公司 电话：7651027","宁银办〔2014〕272号"]
["000113","公司金融部","代理宁夏有线电视收视手续费","代理宁夏有线电视收视费","协议定价","市场调节价","无","无","对公","宁夏地区营业机构","宁夏广播电视网络有限公司 电话：6014307","宁银办〔2014〕272号"]
["000114","公司金融部","代理银川市住房公积金归集手续费","公积金归集业务","协议定价","市场调节价","无","无","对公","银川地区营业机构","银川市住房公积金 电话：6026096","宁银办〔2014〕272号"]
["000115","公司金融部","代理宁夏国税纳税手续费","代理征收12366电话申报的小规模纳税人应缴的增值税和企业所得税","协议定价","市场调节价","无","无","对公","宁夏地区营业机构","宁夏回族自治区国家税务局：银川地区0951-12366、石嘴山地区0952-12366、吴忠地区0953-12366、中卫地区0955-12366"," 宁银办〔2016〕10号 "]
["000117","公司金融部","代理移动用户缴费手续费","代理移动通信业务以及在协议有效期内开办的其他业务的通信费、预缴费、滞纳金等","协议定价","市场调节价","无","无","对公","宁夏地区营业机构","中国移动宁夏分公司 电话：10086 ","宁银办〔2014〕272号"]

{"sheet":"同业及投资理财类","index":7,"n_rows":6,"n_cols":13,"rows_kept":6,"merged":[[0,0,0,12],[7,0,7,3],[8,0,8,12]]}
["宁夏银行服务价目表（同业及投资理财类）"]
["编号","管理部门","收费项目","服务内容","收费标准","定价形式","优惠政策","优惠政策起止日期","适用客户","适用地区","代收代付业务委托单位名称及咨询投诉电话","收费依据","备注"]
["000046","金融市场部","债券借贷融出手续费","债券借贷融出业务","协议定价","市场调节价","无","无","同业客户","总行","无","宁银办〔2022〕54号"]
["000092","资管业务部","受托理财业务服务费","为客户提供理财产品销售、管理等服务而收取的相关费用，包括但不限于认购、申购、赎回手续费，投资管理费，销售服务费等","协议定价,具体收费标准参见理财产品销售文件","市场调节价","无","无","对公/个人/同业客户","所有营业机构","无","宁银办〔2021〕77号"]
["000120","计划财务部","财务顾问费","根据客户需求，提供金融信息、分析和建议，财务分析、投融资咨询服务、设计专项金融服务方案等。","协议定价","市场调节价","对小微企业免收","长期","对公/个人","所有营业机构","无","宁银办〔2020〕343号"]
["000123","金融市场部","债券承分销手续费","债券承分销交易中产生的各类手续费","协议定价","市场调节价","无","无","同业客户","总行","无","宁银办〔2014〕272号"]

{"sheet":"信贷及其它业务类","index":8,"n_rows":10,"n_cols":13,"rows_kept":10,"merged":[[0,0,0,12],[5,0,6,0],[5,1,6,1],[5,2,6,2],[5,3,6,3],[5,5,6,5],[5,6,6,6],[5,7,6,7],[5,8,6,8],[5,10,6,10],[5,11,6,11],[5,12,6,12],[5,13,6,13],[10,0,10,12]]}
["宁夏银行服务价目表（信贷及其它业务类）"]
["编号","管理部门","收费项目","服务内容","收费标准","定价形式","优惠政策","优惠政策起止日期","适用客户","适用地区","代收代付业务委托单位名称及咨询投诉电话","收费依据","备注"]
["000033","授信审批部","贷款合同及承兑协议工本费","签订贷款合同及承兑协议","10万元（含）以下,收10元；10万元以上，收20元","市场调节价","免收","2025年1月1日至2025年12月31日","对公/个人","所有营业机构","无","\n通知〔2024〕648号\n","按份收取，贷款发放或承兑汇票承兑后收取"]
["000034","授信审批部","保函手续费","保函手续费","期限6个月（含）内的，费率0.8‰，最低300元，100%保证金可适当降低标准；期限6个月至1年（含）内的，费率1.2‰，最低300元，100%保证金可适当降低标准；期限1年以上的，费率1.6‰，最低500元，100%保证金可适当降低标准","市场调节价","无","无","对公","所有营业机构","无","宁银（运）发〔2012〕154号"]
["000035","授信审批部","贷款承诺业务手续费","开立信贷证明/贷款承诺手续费","AAA、AA级客户，执行费率0.1‰-1‰；A级及以下客户，执行费率1‰-2‰，单笔手续费不足500元的，按500元收取","市场调节价","对小微企业免收","长期","对公/个人","所有营业机构","无","宁银办〔2020〕343号","按金额和费率一次性收取"]
["000036","授信审批部","委托贷款手续费","接受客户委托，代为发放、管理并协助收回委托贷款","按月费率0.1‰-2‰执行；单笔手续费不足300元的，按300元一次性收取。","市场调节价","无","无","对公/个人","宁夏地区及天津地区","无","宁银办〔2016〕240号","委托人按委托贷款金额和期限支付手续费，本行一次性或按季（月）分次收取"]
[{"$nulls":4},"按月费率0.04‰-2‰，单笔手续费不足300元的，按300元一次性收取。",{"$nulls":4},"西安地区"]
["000110","公司金融部","住房公积金委托贷款手续费","发放住房公积金委托贷款","按不高于贷款利息收入的5%收取,或按协议价格收取","市场调节价","无","无","对公","所有营业机构","无","宁银办〔2014〕272号"]
["000126","公司金融部","银团贷款手续费","为客户提供财务顾问、贷款筹集、法律咨询等融资服务","协议定价","市场调节价","无","无","对公/同业客户 ","所有营业机构","无","宁银办〔2021〕254号"]
["000127","公司金融部","国内保理费","提供买方/卖方资信状况调查服务、提供应收款融资服务、专户管理、应收账款催收、风险控制、坏账担保等服务","国内保理手续费包含：\n（1）应收账款管理费：按转让给本行应收账款金额的0-2%收取（或协议定价）；\n（2）发票处理费：0-100元/张（或协议定价）；\n根据全年保理应收账款金额大小、发票金额及数量、应收账款到期日长短等因素，在规定范围内确定具体收费标准。","市场调节价","无","无","对公","所有营业机构","无","宁银办〔2021〕254号"]

{"sheet":"其它类","index":9,"n_rows":0,"n_cols":0,"rows_kept":0,"hidden":true}

{"sheet":"优惠类","index":10,"n_rows":19,"n_cols":13,"rows_kept":19,"merged":[[0,0,0,12]]}
["宁夏银行服务价目表"]
["编号","管理部门","收费项目","服务内容","收费标准","定价形式","优惠政策","优惠政策起止日期","适用客户","适用地区","代收代付业务委托单位名称及咨询投诉电话","收费依据","备注"]
["000002","运营管理部","对公跨行柜台转账汇款手续费","通过柜台将对公客户的资金从本行账户转移到其他银行（含同城和异地）的账户","1万元以下（含1万元），5元/笔；         1万元-10万元（含10万元），10元/笔；   10万元-50万元（含50万元），15元/笔 ； 50万元-100万元（含100万元），20元/笔 ；100万元以上，每笔按0.002% 收取，最高收费200元。客户要求实时到账的加急业务，加收20%的手续费，每笔业务收费上限为200元","政府指导价","对于小微企业和个体工商户\n1.1万元以下（含1万元），4.5元/笔；\n2.1万元-10万元（含10万元），9元/笔；\n3.其他汇款金额条款不做优惠","2021年9月30日至2024年9月30日","对公","所有营业机构","无","1、发改价格〔2014〕268号；       2、银发〔2021〕169号 \n3、宁银办〔2024〕207号","1、转账范围包括向其他银行的本单位、其他单位或个人的账户进行资金转移；2、汇款金额不迟于2个工作日内到账（因不可控制的外部原因或存在技术条件制约导致资金不能到账或延迟到账、有特别约定等情况除外）；3、汇划财政金库、救灾、抚恤金等款项，免收跨行转账汇款手续费；4、汇划职工工资、退休金、养老金等每笔收费2元"]
["000025","运营管理部","存单、折、借记卡挂失手续费 ","为个人客户办理存单、折、借记卡挂失业务","10元/笔","市场调节价","卡bin621417社保卡挂失手续费免收","2023年1月1日至2025年12月31日","个人","所有营业机构","无","宁银办〔2022〕208号"]
["000027","运营管理部","开立银行询证函手续费","开立银行账户询证函","100元/份","市场调节价","对小微企业免收","2023年7月1日至2024年12月31日","对公","所有营业机构","无","宁银办〔2023〕100号"]
["000031","网络金融部","对公客户普通网银跨行转账/结算汇划费","通过网银将对公客户的资金从本行账户转移到其他银行（含同城和异地）的账户","\n1万元以下（含）：5元/笔\n1万元-10万元（含）：10元/笔\n10万元-50万元（含）：15元/笔\n50万元-100万元（含）：20元/笔\n100万元以上：转账金额的0.002%，最高200元\n","市场调节价","按6折收取","2023年1月1日至2023年12月31日","对公","所有营业机构","无","宁银办〔2022〕208号"]
["000035","授信审批部","贷款承诺业务手续费","开立信贷证明/贷款承诺手续费","AAA、AA级客户，执行费率0.1‰-1‰；A级及以下客户，执行费率1‰-2‰，单笔手续费不足500元的，按500元收取","市场调节价","对小微企业免收","长期","对公/个人","所有营业机构","无"," 宁银办〔2020〕343号","按金额和费率一次性收取"]
["000041","信用卡中心","信用卡年费","按信用卡的信用等级及产品类别享有相应的信用卡功能服务","1.金卡：主卡80元，副卡40元；\n2.普卡：主卡40元，副卡20元；\n3.如意白金卡：主卡年费480元，副卡240元；","市场调节价","1.金卡、普卡：首年免年费，当年消费+取现满3次或900元免次年年费。\n2.如意白金卡：首年免年费，当年消费+取现满12次免次年年费或50000积分兑年费。\n3.已收取信用卡年费的，客户提出申请并在年费收取日起3个月内达到上述年费减免条件的，退还已收的年费。","2024年1月1日至2025年12月31日","个人","所有营业机构","无","宁银办〔2023〕260号","如意白金卡包括尊尚白金卡、车友白金卡、精英白金卡、移动联名白金卡等。"]
["000047","信用卡中心","信用卡工本费","为客户办理信用卡新发、换卡业务；并将围绕特殊工艺、材质、设计等整合自身服务与外部资源，开发具有特殊工艺的卡片产品，满足客户多样化需求","\n1.非特殊设计芯片卡：10元/卡\n2.精英白金卡40元/卡\n3.其他特殊工艺信用卡：根据协议约定收取","市场调节价","\n1.新发卡（含到期续卡）工本费：免收\n2.换卡工本费：\n（1）非特殊设计芯片卡：暂免收取\n（2）精英白金卡40元/卡，无优惠","2024年1月1日至2025年12月31日","个人","所有营业机构","无","宁银办〔2024〕207号"]
["000048","网络金融部","商户收单手续费","向商户提供收单结算服务","协议定价","政府指导价、市场调节价","对标准类商户借记卡刷卡收单手续费（含小微企业和个体工商户）实行9折优惠，封顶值维持不变；对优惠类商户银联卡刷卡收单手续费继续实行7.8折优惠，具体依据监管部门、中国银联等机构相关规定确定","2021年9月30日至2024年9月30日","对公/个人","所有营业机构","无","发改价格〔2016〕557号、银发〔2021〕169号 \n、宁银办〔2024〕207号"]
["000050","运营管理部","单位银行结算账户开户手续费 （不含保证金账户）","办理单位银行结算账户开户业务","100元/户","市场调节价","对于小微企业和个体工商户在同一银行开立的首个或者指定一个单位结算账户50元/户","2021年9月30日至2024年9月30日","对公","所有营业机构","无","1、银发〔2021〕169号 ；\n2、宁银办〔2021〕176号"]
["000069","国际业务部","出口信用证通知/转递","收到开证行开立的信用证，为客户提供通知、转递服务","200元/笔","市场调节价","在我行交单可免收","长期","对公","所有营业机构","无"," 宁银办〔2016〕10号 "]
["000070","国际业务部","出口信用证修改通知","修改信用证通知","100元/笔","市场调节价","在我行交单可免收","长期","对公","所有营业机构","无"," 宁银办〔2016〕10号 "]
["000090","公司金融部","外汇电汇汇出","外汇电汇汇出","汇款金额的1‰，最低50元，最高1000元","市场调节价","免收","2024年1月1日至2024年12月31日","对公/个人","所有营业机构","无","宁银办〔2024〕207号"]
["000097","运营管理部","自助服务终端跨行转账/结算汇划费","通过自助服务终端设备将个人客户的资金从本行账户转移到其他银行（含同城和异地）的账户","0.2万元以下（含）： 2元/笔\n0.2-0.5万元（含）：5元/笔\n0.5万元-1万元（含）：10元/笔\n1万元-5万元（含）：15元/笔\n5万元以上：转账金额的0.03%，最高50元","市场调节价","按6折收取","2023年1月1日至2024年12月31日","个人","所有营业机构","无","宁银办〔2022〕208号"]
["000101","公司金融部","国际业务电报费","SWIFT发报","汇款业务：100元；全电开证：300元；其它业务处理：100-300元。","市场调节价","免收汇款业务手续费，全电开证及其它业务处理按正常收费标准执行","2024年1月1日至2024年12月31日","对公/个人","所有营业机构","无","宁银办〔2024〕207号"]
["000120","计划财务部","财务顾问费","根据客户需求，提供金融信息、分析和建议，财务分析、投融资咨询服务、设计专项金融服务方案等。","协议定价","市场调节价","对小微企业免收","长期","对公/个人","所有营业机构","无"," 宁银办〔2020〕343号"]
["000132","网络金融部","网银证书工本费","USB-KEY证书工本费","35元/个","市场调节价","首次申请、到期更换的网银证书免工本费","2022年1月1日至2024年9月30日","对公/个人","所有营业机构","无"," 宁银办〔2021〕254号","损坏、丢失的按收费标准收取。小微企业和个体工商户按6折收取。"]
["000136","个人金融部","借记卡跨行ATM取款手续费\n","使用借记卡在境内、境外ATM机上提取现金缴纳的费用","境内取款：每笔取款金额3.5元/笔\n境外取款：12元/笔","政府指导价、市场调节价","1.宁夏地区发卡境内外跨行ATM取款每卡每月前10笔免收手续费；\n2.西安地区发卡境内跨行ATM取款每卡每月前10笔免收手续费，境外跨行ATM取款不免手续费；\n3.天津地区发卡境内、境外跨行ATM取款每卡每月前10笔分别免收手续费；\n4.社会保障卡、个人基本养老金借记卡、乡村振兴卡、八一拥军卡境内外跨行ATM取款免收手续费。","2021年9月30日至2024年9月30日","对公/个人","所有营业机构","无","1、银发〔2021〕169号 ；\n2、宁银办〔2021〕254号"]